Workbook

Sheet Sheet1 (hidden)

Sheet Full IDP
A1: Parish / Area | B1: District | C1: Exact Location | D1: Infrastructure Project | E1: Internal Notes | F1: Lead Officer | G1: P1 | H1: P2 | I1: D | J1: Category | K1: Sub-Category | L1: Project Cost | M1: Evidence | N1: Submitted by: | O1: Submit Date | P1: In SDNP? | Q1: Delivered by | R1: Delivery timescale | S1: Existing Secured funding | T1: Funding Gap | U1: PMP Theme | V1: SDNPA Lead | W1: Local Plan Policies | X1: CIL Eligible? | Y1: SCF Eligible? | Z1: MPF Eligible? | AA1: Other Eligible? | AB1: Status | AC1: Priority | AD1: Officer Group Validation | AE1: Parish Council Validation | AF1: CIL Approved
A2: Angmering | B2: Arun | C2: Angmering Village | D2: Visitor centre and car park to improve access from the village to the SDNP | E2: GG - don't think this was looked at by Head of Team | F2: NH/Ruth James | H2: Y | I2: Y | J2: Education | K2: Visitor Information | L2: 250000 | M2: Cost: officer estimate based likely cost of building a facilities and the ancilliary development (car park etc). | N2: Angmering Parish Rep | O2: 2013-04-01 | T2: =L2-S2 -> 250000
A3: Clanfield | B3: EHDC | C3: QECP | D3: Redevelopment of visitor facilites at Queen Elizabeth Country Park | E3: GG - don't think this was looked at by Head of Team | F3: NH/Ruth James | H3: Y | I3: Y | J3: Education | K3: Visitor Information | L3: 1500000 | M3: Strategic plan | N3: SDNPA:Western Area Manager (Nick Heasman) | O3: 2014-01-01 | Q3: HCC/FC/SDNPA | R3: 2016 | S3: Awaiting confirmation
A4: East Meon | B4: WCC | C4: East Meon C of E Primary School | D4: School Hall extension | E4: GG - don't think this was looked at by Head of Team | F4: Amanda Elms | H4: Y | I4: Y | J4: Education | K4: Primary Education | L4: 120000 | M4: School at capacity and hall is now limited. | N4: East Meon Parish Rep | O4: 2013-05-01 | Q4: Hampshire County Council / School Fundraising | R4: 2015/16 | S4: 10000 | T4: =L4-S4 -> 110000
A5: Lewes | B5: Lewes | C5: Lewes Town | D5: Primary school improvements (capacity). One form of entry (210 places) expanding existing school(s). | H5: Y | I5: Y | J5: Education | K5: Primary Education | L5: 3500000 | M5: ‘School Organisation and Place Planning in East Sussex 2013/14’ document. Development in Lewes area which is not yet permitted. It will also support built and already committed developments | O5: 2014-02-01 | P5: y | Q5: ESCC | R5: 2015 | S5: Government grant, ESCC capital programme, development contributions from S106 agreements and CIL
A6: Lewes | B6: Lewes | C6: Lewes Town | D6: Early Years places additional capacity: 72 places (15 hour slots) | H6: Y | I6: Y | J6: Education | K6: Primary Education | L6: 500000 | M6: ESCC’s Early Years Forecasting Model updated on12.12.13. Development in Lewes area which is not yet permitted It will also support built and already committed developments | N6: East Sussex County Council | O6: 2014-02-01 | P6: Y | Q6: ESCC | R6: 2015 | S6: Government grant, ESCC capital programme, development contributions from S106 agreements and CIL
A7: Lewes | B7: Lewes | C7: Sussex Downs College (Lewes Campus) | D7: Further Education college provision 16-19yo. Additional 150 workplaces in total of which 75% (112 workplaces) attributed to Lewes District IDP. This further splits to 50% of overall total (75 places) attributed to Lewes District and 25% (37 workplaces) attributed to South Downs National Park. | H7: Y | I7: Y | J7: Education | K7: Secondary Education | L7: 650000 | M7: ESCC’s Post-16 Forecasting Model update on 13.11.13. Estimated cost = c £2.6million in total of which 75% (£1.95m) attributed to Lewes District IDP. This further splits to 50% of total cost (£1.3m) attributed to Lewes District and 25%(£0.65m to SDNP. Need generated by development in Lewes District/South Downs National Park area which is not yet permitted | N7: East Sussex County Council | O7: 2014-02-01 | P7: y | Q7: ESCC | R7: 2020 | S7: CIL South East Local Enterprise Partnership Coast to Capital Local Enterprise Partnership
A8: Lewes | B8: Lewes | C8: Plumpton College | D8: Further Education college provision 16-19yo. Additional 100 workplaces in total of which 40% (40 workplaces) attributed to Lewes District IDP. This further splits to 30% of overall total (30 places) attributed to Lewes District and 10% (10 workplaces) attributed to South Downs National Park | H8: Y | I8: Y | J8: Education | K8: Secondary Education | L8: 127000 | M8: Estimated cost = c £1.27 million in total of which 40% (£0.508m) attributed to Lewes District IDP. Need generated by development in Lewes District/South Downs National Park area which is not yet permitted. This further splits to 30% of total cost (£0.381m) attributed to Lewes District and 10% (£0.127m to SDNP | N8: East Sussex County Council | O8: 2014-02-01 | P8: y | Q8: ESCC | R8: 2020 | S8: CIL South East Local Enterprise Partnership Coast to Capital Local Enterprise Partnership
A9: Petersfield | B9: EHDC | D9: Additional primary provision | H9: Y | I9: Y | J9: Education | K9: Primary Education | L9: 5500000 | M9: EHDC JCS Appendix 2 (HCC) | N9: EHDC JCS. Hampshire County Council | O9: 2014-10-01 | Q9: HCC/Developer Funding
A10: Petersfield | B10: EHDC | C10: Petersfield | D10: 210 Primary School places to cover Petersfield (relating to population growth not new development) | F10: Amanda Elms | H10: Y | I10: Y | J10: Education | K10: Primary Education | L10: 1500000 | M10: Hampshire County Council Children's Services Dept | N10: Hampshire County Council | O10: 2013-02-01 | Q10: HCC/Developer Funding | S10: 1500000 HCC capital finding | T10: 0
A11: Petworth | B11: CDC | C11: Within parish | D11: National Park Visitor Centre | E11: more detail needed | F11: Allison Thorpe | H11: Y | I11: Y | J11: Education | K11: Visitor Information | L11: 100000 | M11: Draft Petworth Neighbourhood Plan Scoping Study. Cost: officer estimate based on similar project, assumed free standing small kiosk or shared facility. | N11: Petworth Parish Council | O11: 2013-06-01 | Q11: SDNPA | R11: 2015-2018 | S11: None
A12: Storrington and Sullington | B12: Horsham | C12: Storrington High Street | D12: Tourist information facility | E12: GG - don't think this was looked at by Head of Team | F12: NH/Ruth James | H12: Y | I12: Y | J12: Education | K12: Visitor Information | L12: 100000 | M12: Community Action Plan to promote proximity to SDNP. Cost: officer estimate based on similar project, assumed free standing small kiosk or shared facility. | N12: Storrington and Sullington Parish Rep | O12: 2013-04-01 | Q12: Tourist Information is responsibility of District Council. | T12: =L12-S12 -> 100000
A13: Twyford | B13: EHDC | C13: Twyford Primary School - Potential for new site for school as part of the Neighbourhood Plan as current site over-crowded no car parking in the middle of an residential area | D13: Primary school improvements (capacity or relocation) | E13: GG - don't think this was looked at by Head of Team | F13: Amanda Elms | H13: Y | I13: Y | J13: Education | K13: Primary Education | L13: 1500000 | M13: Temporary Classrooms Traffic / parking problems Concern over children’s safety Lack of children play space | N13: Twyford Parish | O13: 2013-06-01 | Q13: Hants County Council | S13: None | T13: =L13-S13 -> 
A14: Heritage Coast area | B14: Eastbourne | C14: Crowlink, Frog Firle Farm, Seven Sisters area | D14: Access to, and interpretation of, archaeological sites | E14: Needs more detail | I14: Stephen Sibbald | J14: Education | K14: Interpretation | L14: 100000 | M14: Cost: officer estimate based on similar project. £50k each site. | N14: National Trust; Jane.arnott@nationaltrust.org.uk; jane.cecil@nationaltrust.org.uk; National Trust - London and South East, Polesden Lacey, Dorking, Surrey, RH5 6BD, 01372 455008 | O14: 2013-07-01
A15: Buriton | B15: EHDC | C15: Village Hall | D15: Improve Village Hall: energy efficiency; new lighting; solar panels; insultation etc | F15: Ray Drabble | H15: Y | I15: Y | J15: Facilities Services | K15: Energy Efficiency Improvements | L15: 50000 | M15: Parish Plan. Cost: officer estimate based on similar project. | N15: Buriton Parish Council | O15: 2013-08-01 | T15: =L15-S15 -> 50000 | V15: RCD
A16: Clanfield | B16: EHDC | C16: QECP | D16: Improve visitor facilities and capacity at QECP | E16: No detail | F16: Chris Patterson | H16: Y | I16: Y | J16: Facilities Services | K16: Community building | L16: 500000 | M16: Hampshire Strategic Infrastructure Statement / Hampshire County Council Countryside Service. Cost estimated by officers. | N16: Hampshire County Council | O16: 2013-02-01 | Q16: HCC with Forestry Commission, SDNPA | R16: tbc
A17: Corhampton & Meonstoke | B17: WCC | C17: Meon Hall, Meonstoke | D17: Village Hall Improvement – replace suspended ceiling to main hall | F17: Chris Patterson | H17: Y | I17: Y | J17: Facilities Services | K17: Village Hall | L17: 87000 | M17: Meon Hall Management committee plan / 5 year plan | N17: Parish Council - Nick Riley, chair@candm-pc.gov.uk; 01489 877962 | O17: 2013-06-01 | Q17: Parish Council | R17: 2014 Q1 | S17: 0
A18: Fernhurst | B18: CDC | C18: Scout Hut / Youth Club | D18: Refurbish Scout Hut. | E18: Identified in the Neighbourhood Plan | F18: Chris Patterson | H18: Y | I18: Y | J18: Facilities Services | K18: Community use | L18: 50000 | M18: Neighbourhood Plan Policy CF1. Cost: officer estimate based on similar project. | N18: Neighbourhood Plan | O18: 2014-07-01 | T18: =L18-S18 -> 50000
A19: Funtington | B19: CDC | C19: Funtington, south of B2146 Common Road at Downs Road | D19: New Community Centre, replacement for existing village hall. | F19: Chris Patterson | H19: Y | I19: Y | J19: Facilities Services | K19: Village Hall | L19: 900000 | M19: Plans are well advanced for a new Community Centre for the Funtington Parish (includes the villages of Funtington, West Ashling, East Ashling and West Stoke, plus the settlements of Upper Hambrook & Sennicotts). It is also for the benefit of neighbouring parishes without community facilities. This will replace the existing time-expired Village Hall in West Ashling. The new Community Centre will be built on two hectares of land, which have been given to the project, close to Funtington and immediately adjacent to the B2146. | N19: John Peart, Chairman, Funtington District Community Centre Society Ltd , Tel: 01243 575565, e-mail: john.b.peart@gmail.com | O19: 2013-06-01 | Q19: The Community Centre will be built, managed and maintained by a ‘community benefit co-operative’ – Funtington District Community Centre Society Ltd. This co-operative has been set up and registered with the Financial Services Authority, using a grant from West Sussex County Council. | S19: £500,000 from Seawards Properties Ltd., who will redevelop the old village hall site, and a Public Works Loan of £200,000 has received agreement in principle from the Funtington Parish Council. | T19: 200000
A20: Graffam | B20: CDC | C20: Empire Hall, The Street, Graffam (also used by East Lavington) | D20: Improve Village Hall: reglazing windows to accommodate double glazing; recarpet balcony and create storage under roof sides; Restoration of timber floor; Renew heating boiler; Solar panels; Extension of rear of hall with conservatory type committee and small meeting room and to enable extension of kitchen; Replace storage sheds with designed buildings and landscape the garden. | F20: Chris Patterson | H20: Y | I20: Y | J20: Facilities Services | K20: Village Hall | L20: 100000 | M20: Cost estimate by officers based on substantial refurbishment and sustainability improvements | T20: =L20-S20 -> 100000
A21: Kingston (East Sussex) | B21: Lewes | C21: Village centre, Community Pavilion | D21: Mobile Post Office - capital purchase | F21: Chris Patterson | H21: Y | I21: Y | J21: Facilities Services | K21: Community service | L21: 75000 | M21: Kingston Parish Action Plan 2007 and 2011 and the 2013 village questionnaire (results pending assessment). The nearest post office facilities are in Lewes or Woodingdean, Brighton. | N21: Kingston (ES) Parish Council | O21: 2013-06-01 | Q21: Kingston Parish Council | R21: 2016 | T21: =L21-S21 -> 75000
A22: Kingston (East Sussex) | B22: Lewes | C22: Village centre, Community Pavilion | D22: Mobile Library - capital purchase | F22: Chris Patterson | H22: Y | I22: Y | J22: Facilities Services | K22: Community service | L22: 75000 | M22: Kingston Parish Action Plan 2007 and 2011 and the 2013 village questionnaire (results pending assessment). The nearest library in Lewes. Locating these services within the village will improve accessibility and develop community cohesion. | N22: Kingston (ES) Parish Council | O22: 2013-06-01 | Q22: Kingston Parish Council | R22: 2016
A23: Kingston (East Sussex) | B23: Lewes | C23: Village Hall | D23: Improve Village Hall to facilitate classes | F23: Chris Patterson | H23: Y | I23: Y | J23: Facilities Services | K23: Village Hall | L23: 50000 | N23: Kingston (ES) Parish Rep | O23: 2013-04-01 | T23: =L23-S23 -> 50000
A24: Lewes | B24: Lewes | C24: ??? | D24: Cemetery provision in Lewes | F24: Chris Patterson | H24: Y | I24: Y | J24: Facilities Services | K24: Community service | L24: 500000 | M24: Cost estimate excludes land price and includes ground works and fully serviced with car parking and accomodation etc. | N24: Lewes Workshop Reps | O24: 2013-04-01 | T24: =L24-S24 -> 500000
A25: Lewes | B25: Lewes | C25: Lewes Town Hall | D25: Refurbish Town Hall | F25: Chris Patterson | H25: Y | I25: Y | J25: Facilities Services | K25: Village Hall | L25: 50000 | N25: Lewes Workshop Reps | O25: 2013-04-01 | T25: =L25-S25 -> 50000
A26: Liphook | B26: EHDC | D26: From consultation | J26: Facilities Services
A27: Parham | B27: Horsham | C27: Rackham Old School Community Centre | D27: Improve Rackham Old School Community Centre | E27: No detail | F27: Chris Patterson | H27: Y | I27: Y | J27: Facilities Services | K27: Community building | L27: 50000 | M27: Pending further information | N27: Parham Parish Rep | O27: 2013-04-01 | T27: =L27-S27 -> 50000
A28: Petersfield | B28: EHDC | C28: Love Lane Recreation Ground | D28: New Youth Facility Building | H28: Y | I28: Y | J28: Facilities Services | K28: Community building | L28: 3000000 | M28: Part of the vision from Neighbourhood Plan. Any re-structuring of the existing Pavilion would be intended to be incorporated within the new building footprint if possible. Provision of facility is seen as being a long term aim. Petersfield Neighbourhood Plan Group provided costings. | N28: Petersfield Town Council | O28: 2014-08-01 | R28: 2025
A29: Petersfield | B29: EHDC | C29: Festival Hall | D29: Extention and refurbishment (inc. kitchen; toilet facilities; relocation of sound and lighting desks plus office/rehearsal space; improved ventilation; replacement boilers). | H29: Y | I29: Y | J29: Facilities Services | K29: Community building | L29: 2250000 | M29: Current single storey extension provided as a temporary building over 40 years ago. Issues exist re water ingress as well as services beneath floor. Urgently needed facilities to provide a quality theatre/multi-purpose hall for community use with potential for operating as a Conference venue. Petersfield Neighbourhood Plan Group provided costings. | N29: Petersfield Town Council | O29: 2014-08-01 | R29: 2015/16
A30: Petersfield | B30: EHDC | C30: Flora Twort Gallery | D30: Purchase Property for the Town | E30: Need to investigate why - is it cultural heritage or simply needing a venue? | H30: Y | I30: Y | J30: Facilities Services | K30: Community building | L30: 250000 | M30: If the Museum seeks to sell the facility to fund its purchase of the old Police Station PTC would want to save this building for the town. Petersfield Neighbourhood Plan Group provided costings. | N30: Petersfield Town Council | O30: 2014-08-01 | R30: 2020/21
A31: Petersfield | B31: EHDC | C31: Town Centre | D31: Provision of youth café - excluding land purchase | H31: Y | I31: Y | J31: Facilities Services | K31: Community building | L31: 200000 | M31: Exact location to be confirmed but potentially seeking to use an empty shop premises. Petersfield Neighbourhood Plan Group provided costings. | N31: Petersfield Town Council | O31: 2014-08-01 | R31: 2020/21
A32: Petersfield | B32: EHDC | C32: Festival Hall | D32: Installation of sprinkler system | H32: Y | I32: Y | J32: Facilities Services | K32: Community building | L32: 175000 | M32: Need acknowledged following 2008 fire. Petersfield Neighbourhood Plan Group provided costings. | N32: Petersfield Town Council | O32: 2014-08-01 | R32: 2021/22
A33: Petersfield | B33: EHDC | C33: Festival Hall | D33: Stage lighting for theatrical purposes | H33: Y | I33: Y | J33: Facilities Services | K33: Community building | L33: 70000 | M33: Requested by theatrical groups as an improvement to existing facilities to speed up set up and take down from shows as well as improve health & safety matters. Petersfield Neighbourhood Plan Group provided costings. | N33: Petersfield Town Council | O33: 2014-08-01 | R33: 2015/16
A34: Petersfield | B34: EHDC | C34: Festival Hall | D34: Town Hall Entrance and toilet refurbishment | H34: Y | I34: Y | J34: Facilities Services | K34: Community building | L34: 55000 | M34: To improve appearance and access for public and staff working conditions. Petersfield Neighbourhood Plan Group provided costings. | N34: Petersfield Town Council | O34: 2014-08-01 | R34: 2015/16
A35: Petersfield | B35: EHDC | C35: Festival Hall | D35: Double glazing to Rose Room, Changing Rooms and Offices | H35: Y | I35: Y | J35: Facilities Services | K35: Community building | L35: 50000 | M35: Windows to Rose Room and commercial offices on first floor of Festival Hall are now barely weather-proof. Redecoration has extended their life a bit. Needed as a priority. Petersfield Neighbourhood Plan Group provided costings. | N35: Petersfield Town Council | O35: 2014-08-01 | R35: 2015
A36: Petersfield | B36: EHDC | C36: The Heath | D36: Refurbish public toilet facilities | H36: Y | I36: Y | J36: Facilities Services | K36: Community use | L36: 100000 | M36: Current toilets are very poor and do not reflect well on the town or the Council. The Heath is heavily used by visitors and improved facilities are required sooner rather than later. Petersfield Neighbourhood Plan Group provided costings. | N36: Petersfield Town Council | O36: 2014-08-01 | R36: 2015/16
A37: Petersfield | B37: EHDC | C37: Love Lane Recreation Ground | D37: New Toilet Facilities for Skatepark | H37: Y | I37: Y | J37: Facilities Services | K37: Community use | L37: 80000 | M37: Recognised need to provide toilet facilities at Love Lane primarily for skatepark users – a number of whom travel significant distances. Petersfield Neighbourhood Plan Group provided costings. | N37: Petersfield Town Council | O37: 2014-08-01 | R37: 2016/17
A38: Petersfield | B38: EHDC | C38: Petersfield | D38: Petersfield Open air swimming pool - renewable energy heating of the pool extending the use through the year | F38: Ray Drabble | H38: Y | I38: Y | J38: Facilities Services | K38: Energy Efficiency Improvements | L38: 75000 | M38: Feasibility study and charity trust survey of users | N38: SDNPA:Western Area Manager (Nick Heasman) | O38: 2014-01-01 | Q38: Petersfield outdoor swimming pool | R38: 2017 | S38: ? | V38: RCD
A39: Ringmer | B39: Lewes | C39: Ringmer | D39: Extend Village Hall | F39: Chris Patterson | H39: Y | I39: Y | J39: Facilities Services | K39: Village Hall | L39: 50000 | N39: Ringmer Parish Rep | O39: 2013-04-01 | T39: =L39-S39 -> 50000
A40: Rogate | B40: EHDC | C40: Village Hall | D40: Village Hall upstairs accomodation | F40: Chris Patterson | H40: Y | I40: Y | J40: Facilities Services | K40: Village Hall | L40: 50000 | M40: There are stairs up to some very useful accommodation above the Hall itself, and above the Heritage Centre and the Youth Club. It has been used in the past, but now cannot be used because of fire regulations. The whole area needs to be fire-proofed. If this was done, there could be several workshops, meeting rooms, or even emergency overnight accommodation in what at present is empty space. An application was made to the Jubilee Millions for this purpose but was unsuccessful. | N40: Rogate Village Hall Committee | O40: 2013-07-01
A41: Sheet | B41: EHDC | C41: Sheet Village Recreation Ground east of Portlands Close | D41: Refurbish and Extend Scout Hut (permission granted, seeking funding) | E41: SDNP/13/00125/FUL | H41: Y | I41: Y | J41: Facilities Services | K41: Community use | L41: 130000 | M41: Permission granted for works | N41: Sheet Parish Council | O41: 2014-11-01 | S41: 60000 | T41: =L41-S41 -> 70000
A42: Slindon | B42: Arun | C42: Possible location at Pumpkin Lodge (requires restoration) | D42: Shared office accomodation for volunteers and village residents | F42: Chris Patterson | H42: Y | I42: Y | J42: Facilities Services | K42: Community use | L42: 50000 | M42: Consultants Report. Cost estimate based on refurbishment and fit-out cost of a community building including hot desk, toilet and access. | N42: National Trust; Jane.arnott@nationaltrust.org.uk; jane.cecil@nationaltrust.org.uk; National Trust - London and South East, Polesden Lacey, Dorking, Surrey, RH5 6BD, 01372 455008 | O42: 2013-07-01 | T42: 50000
A43: Twyford | B43: EHDC | C43: Twyford Village Hall | D43: Village Hall - refurbish and extend | F43: Chris Patterson | H43: Y | I43: Y | J43: Facilities Services | K43: Village Hall | L43: 75000 | M43: £75 - £100k. Demand exceeds supply and further meeting /storage space required | N43: Twyford Parish | O43: 2013-06-01 | Q43: Parish Hall Trustees | R43: 2016 | S43: None
A44: Washington | B44: Horsham | C44: Washington Village | D44: Village Hall improvements | F44: Chris Patterson | H44: Y | I44: Y | J44: Facilities Services | K44: Village Hall | L44: 50000 | M44: Parish Plan 2004. Washington has a well-used village hall requiring some updating and improvements. Works to improve the roof, replace the floor in the main hall, general maintenance and redecoration. There are many village groups and local organisations that enjoy using the hall. With increased numbers of residents expected, the Village Hall Management Committee would welcome funds to ensure that the hall is fit for purpose for many generations to come. | N44: Washington Parish | O44: 2013-05-01 | R44: 2018 | S44: 0 | T44: 50000
A45: Wisborough Green | B45: CDC | C45: The Green, Wisborough Green | D45: Ongoing operation of the Public toilets | F45: Chris Patterson | H45: Y | I45: Y | J45: Facilities Services | K45: Community use | L45: =12000*10 -> 120000 | M45: Petition (>1,000 ticks on sheet in toilets by users indicating 33% also using other village facilities ie econ + leisure, and, 25% making use of them when on the A272. 550 signatures on paper petition supporting their contd existence. 300 signatures on internet petition. Proponent suggests ongoing cost of £12,000/year. Capitalised for CIL purposes. | N45: Wisborough Green Parish Rep | O45: 2013-04-01 | Q45: Currenty Chichester District Council. | R45: 2015 | S45: 0 | T45: 120000
A46: Wisborough Green | B46: CDC | C46: Adjacent to the Green, Wisborough Green | D46: Village Hall Refurbishment | F46: Chris Patterson | H46: Y | I46: Y | J46: Facilities Services | K46: Village Hall | L46: 60000 | M46: Ward Profile 2011 WG Ward produced by Corporate Info Team within CDC | N46: Wisborough Green Parish Rep | O46: 2013-04-01 | Q46: Parish Council and Village Hall Committee | S46: 0 | T46: 60000
A47: Wiston | B47: Horsham | C47: New site in Wiston Village centre | D47: Replacement Village Hall | F47: Chris Patterson | H47: Y | I47: Y | J47: Facilities Services | K47: Village Hall | L47: 200000 | M47: The current village hall was poorly sited when it was built 50 years ago. Access is close to a blind summit on the busy A283, which deters visitors of a nervous disposition. The hall is in very poor condition and would require a great deal of work to bring it up to standard. Councillors are of the opinion that the most efficient solution would be a new hall, in a central location, built from sustainable materials, with eco services and facilities. | N47: Wiston Parish Rep | O47: 2013-04-01 | R47: 2020 | T47: 200000
A48: Worldham | B48: EHDC | C48: East Worldham Village Hall | D48: Improve Village Hall: New floor, lighting, disabled access improvements, new roof tiles, insulation | F48: Chris Patterson | H48: Y | I48: Y | J48: Facilities Services | K48: Village Hall | L48: 50000 | M48: Parish Plan | N48: Worldham Parish Rep | O48: 2013-04-01 | Q48: Worldham Parish Council | R48: 2013-2018 | T48: 50000
A49: Angmering | B49: Arun | C49: North of Angmering Village | D49: Create balancing pond. | E49: Currently WSCC working with EA on upstream at attenuation on the Black Ditch, this may include works on the balancing pond. We (EA, ADC and WSCC) have carried out a recent walk of the whole area and have identified some possible quick wins. Further investigation due to be carried out to look at options for longer term actions. Grant in Aid Funding submission is in the pipeline for 2014/15 for these works. RCD Note: Going back to WSCC on applicability for IDP. | F49: Ray Drabble | G49: Y | J49: Green | K49: Flood management | L49: 35000 | M49: Cost estimate by officers based on similar projects. | N49: Angmering Parish Rep | O49: 2013-04-01 | Q49: West Sussex County, Arun District, Environment Agency | T49: 35000 | V49: RCD
A50: ARRT Area | B50: Multiple | C50: Western Rother South Ambersham | D50: South Ambersham/ Moorland Farm meander reconnection | G50: y | J50: Green | K50: Biodiversity project | L50: 120000 | M50: A river restoration project to reconnect a remnant meander and its associated floodplain. Restore natural river processes to provide additional habitat diversity to benefit the ecology of the Western Rother. · Fluvial Arun and Rother Adaptation Study (EA, 2013) | N50: Arun & Rother Rivers Trust (ARRT) projectdevelopmentofficer@arrt.org.uk Veronika (Vee) Moore, 01730 813290, 07884 868151 | O50: 2015-10-01 | Q50: ARRT icw EA & WTT | R50: 2016/17+ | S50: Potential cash contribution from EA’s flood defence & WFD funds
A51: ARRT Area | B51: Multiple | C51: Western Rother, Midhurst | D51: North Mill fish pass | G51: y | J51: Green | K51: Biodiversity project | L51: 150000 | M51: A river restoration project to fit a new fish bypass in between the existing main channel (into North Mill pond) and the flood relief channel. - North Mill fish pass (EA, 2011) - Fluvial Arun and Rother Adaptation Study (EA, 2013) | N51: Arun & Rother Rivers Trust (ARRT) projectdevelopmentofficer@arrt.org.uk Veronika (Vee) Moore, 01730 813290, 07884 868152 | O51: 2015-10-01 | Q51: ARRT icw, EA, SDNPA, WSCC, Midhurst College | R51: 2016/17+ | S51: Potential cash contribution from EA’s flood defence & WFD funds
A52: ARRT Area | B52: Multiple | C52: Western Rother, Stedham | D52: Stedham Mill fish pass | G52: y | J52: Green | K52: Biodiversity project | L52: 125000 | M52: A river restoration project to improve fish passage either by installing a technical fish pass on the over-spill section of the main structure or by removing the automated gate (to reduce the head created at the weir). Latter is cheaper & has wider WFD benefits. - Fluvial Arun and Rother Adaptation Study (EA, 2013) | N52: Arun & Rother Rivers Trust (ARRT) projectdevelopmentofficer@arrt.org.uk Veronika (Vee) Moore, 01730 813290, 07884 868153 | O52: 2015-10-01 | Q52: ARRT icw, EA & WTT | R52: 2016/17+ | S52: Potential cash contribution from EA’s flood defence & WFD funds
A53: ARRT Area | B53: Multiple | C53: South Downs NCA/ SE England | D53: Re-fresh South Downs chalk stream project | G53: y | J53: Green | K53: Biodiversity project | L53: 1500000 | M53: Conservation and restoration of freshwater habitats along the chalk scarp slopes of the South Downs, as a follow-on to the South Downs Way Ahead NIA. - An Investigation of the Watercourses in Sussex arising from the chalk aquifer of the South Downs (Holmes, 2010) - Refining the priority river habitat map for England (NE, 2015) Cost estimate £1-2m | N53: Arun & Rother Rivers Trust (ARRT) projectdevelopmentofficer@arrt.org.uk Veronika (Vee) Moore, 01730 813290, 07884 868154 | O53: 2015-10-01 | Q53: South East Rivers Trust icw, ARRT, SDNPA, SxWT, KWT | R53: 2016-2019 | S53: In-kind
A54: ARRT Area | B54: Multiple | C54: Western Rother catchment | D54: Rother riparian re-vegetation project Strand 1 | G54: y | J54: Green | K54: Biodiversity project | L54: 35000 | M54: Strand 1: Working with the Woodland Trust & SDNPA to maximise river shade in poorly vegetated reaches of the Rother and its tributaries. Sites with best river shade potential already identified in the feasibility study carried out by Ses Wright (ARRT Project Officer) in 2014/15. Cost = £35-£75k depending on the length of rirverbank covered | N54: Arun & Rother Rivers Trust (ARRT) projectdevelopmentofficer@arrt.org.uk Veronika (Vee) Moore, 01730 813290, 07884 868155 | O54: 2015-10-01 | Q54: ARRT icw SDNPA, SxWT, NE | R54: 2016/17+ | S54: Cash/ in-kind from Woodland Trust, SDNPA, ARC project, SxWT, landowners
A55: ARRT Area | B55: Multiple | C55: Western Rother catchment | D55: Rother riparian re-vegetation project Strand 2 | G55: y | J55: Green | K55: Biodiversity project | L55: 35000 | M55: Strand 2: Protecting vulnerable riverbanks from livestock grazing or poaching to reduce soil erosion, increase bank stability & improve water quality. Project could also explore alternative drinking facilities for livestock. - New basic rules for farmers to tackle diffuse water pollution from agriculture in England (Defra, 2015) | N55: Arun & Rother Rivers Trust (ARRT) projectdevelopmentofficer@arrt.org.uk Veronika (Vee) Moore, 01730 813290, 07884 868156 | O55: 2015-10-01 | Q55: ARRT icw SDNPA, SxWT, NE | R55: 2016/17+
A56: ARRT Area | B56: Multiple | C56: Western Rother catchment | D56: ‘Improving Water Quality with Grassed Waterways’ demonstration project | G56: y | J56: Green | K56: Biodiversity project | L56: 10000 | M56: The soils in the Rother valley are extremely prone to erosion. This project would demonstrate how grassed waterways could be used to 1) convey runoff from concentrated flow without causing soil erosion, 2) control gully erosion and 3) protect and improve water quality. It would fit nicely alongside ARRT’s existing portfolio of soil conservation measures, e.g. the sediment traps work. - Research by John Boardman, University of Oxford and Ian Foster, The University of Northampton | N56: Arun & Rother Rivers Trust (ARRT) projectdevelopmentofficer@arrt.org.uk Veronika (Vee) Moore, 01730 813290, 07884 868157 | O56: 2015-10-01 | Q56: University of Oxford and Northampton icw ARRT & NE | R56: 2016/17+ | S56: In-kind
A57: Arun and Rother Rivers | D57: Arun and Rother Connections Project (ARRT) | F57: Emily Brennan | J57: Green | K57: Biodiversity project | L57: 2286852 | M57: Rachel Carless RSPB | N57: SDNPA: Biodiversity Lead (Emily Brennan) | O57: 2013-09-01 | Q57: Rachel Carless RSPB | S57: 1135779
A58: Barlavington Estate | B58: CDC | C58: Barlavington Estate | D58: Refurbish Chingford Pond | F58: Emily Brennan | G58: Y | J58: Green | K58: Biodiversity project | L58: 35000 | M58: Cost estimate by officers based on similar projects. | N58: SDNPA Weald and Heath Team (via Andy Beattie) | O58: 2013-08-01 | Q58: SDNPA / landowner | S58: Natural England, Petworth Management Company and WSCC
A59: Barlavington Estate | B59: CDC | C59: Barlavington Estate | D59: Refubish Burton Pond (dredging) | F59: Emily Brennan | G59: Y | J59: Green | K59: Biodiversity project | L59: 35000 | M59: Cost estimate by officers based on similar projects | N59: SDNPA Weald and Heath Team (via Andy Beattie) | O59: 2013-08-01 | Q59: SDNPA / landowner | S59: Natural England and WSCC | T59: ?
A60: Buriton | B60: EHDC | D60: Allotment / Community Orchard provision (not including land purchase) | F60: Pete Currell | G60: Y | J60: Green | K60: Community Use G.I. | L60: 30000 | M60: Parish Plan | N60: Buriton Parish Council | O60: 2013-08-01
A61: Clanfield | B61: EHDC | C61: QECP | D61: Sustainable transport corridors to Queen Elizabeth Country Park- Identify and improve sustainable transport corridors to Queen Elizabeth Country Park from Clanfield, Buriton and Petersfield. | F61: Tim Squire | G61: Y | J61: Green | K61: Access land | L61: 2000000 | M61: Hampshire County Council Strategic Infrastructure Statement / HCC Countryside Service | N61: Hampshire County Council | O61: 2013-02-01 | Q61: HCC/NE/SDNPA/EHDC/Parishes/Ramblers/British Horse Society/Cyclists Touring Club/Landowners/Forestry Commission | R61: 2022 | S61: none | T61: 2000000
A62: Fernhurst | B62: CDC | C62: Syngenta Site | D62: Allotment provision (not including land purchase) | F62: Pete Currell | G62: Y | J62: Green | K62: Community Use G.I. | L62: 30000 | M62: Neighbourhood Plan | N62: Neighbourhood Plan | O62: 2014-07-01
A63: Four Marks | B63: EHDC | C63: Swelling Hill Pond in Four Marks | D63: De-silt pond | F63: Emily Brennan | G63: Y | J63: Green | K63: Biodiversity project | L63: 35000 | M63: Parish Plan | N63: Four Marks Parish Rep | O63: 2013-04-01 | R63: End-2013 | T63: =L63-S63 -> 35000
A64: Hampshire | B64: WCC | C64: Andy Gattiker to supply exact location | D64: Complete entrance from South Downs Way into Winchester (Twyford to St Catherine’s Hill) | E64: note HCC CAP to be reviewed soon | F64: Tim Squire | G64: Y | J64: Green | K64: Access land | L64: Not known, need permissions | M64: CAP | N64: Hampshire County Council Countryside Service: Alison.perry@hants.gov.uk / petronella.nattrass@hants.gov.uk; 02392 592409 / 01962 845326 | O64: 2013-07-01 | Q64: SDNPA | R64: 2023
A65: Hampshire | B65: WCC | C65: Knowle/Funtley | D65: Meon Valley Trail – upgrade and complete missing link at Knowle/Funtley to provide a ‘Sea to Downs’ link | E65: note HCC CAP to be reviewed soon | F65: Tim Squire | G65: Y | J65: Green | K65: Access land | L65: 500000 | M65: CAP. £50,000 Permissions needed | N65: Hampshire County Council Countryside Service: Alison.perry@hants.gov.uk / petronella.nattrass@hants.gov.uk; 02392 592409 / 01962 845326 | O65: 2013-07-01 | Q65: HCC, SDNPA | R65: 2023 | S65: £75k LSTF; £325k Linking Communities – further £100k needed | T65: 100000
A66: Hampshire | C66: SDW | D66: Complete South Downs Way between Old Winchester Hill and Beacon Hill | E66: note HCC CAP to be reviewed soon | F66: Tim Squire | G66: Y | J66: Green | K66: Access land | L66: Not known, need permissions | M66: CAP | N66: Hampshire County Council Countryside Service: Alison.perry@hants.gov.uk / petronella.nattrass@hants.gov.uk; 02392 592409 / 01962 845326 | O66: 2013-07-01 | Q66: SDNPA | R66: 2023
A67: Hampshire | C67: Buriton / Petersfield and South Harting | D67: New off-road path to avoid busy B2146 | E67: note HCC CAP to be reviewed soon | F67: Tim Squire | G67: Y | J67: Green | K67: Access land | L67: 50000 | M67: CAP (4161) | N67: Hampshire County Council Countryside Service: Alison.perry@hants.gov.uk / petronella.nattrass@hants.gov.uk; 02392 592409 / 01962 845326 | O67: 2013-07-01 | Q67: HCC Countryside | R67: 2023 | S67: none
A68: Hampshire | C68: Shawford and Otterbourne | D68: Complete NCN route 23 link off-road from Hockley through Shawford and Otterbourne | E68: note HCC CAP to be reviewed soon | F68: Tim Squire | G68: Y | J68: Green | K68: Access land | M68: CAP (T&I) | N68: Hampshire County Council Countryside Service: Alison.perry@hants.gov.uk / petronella.nattrass@hants.gov.uk; 02392 592409 / 01962 845326 | O68: 2013-07-01 | Q68: Parish Council, HCC | R68: 2023
A69: Hampshire | D69: New off-road alternatives to Morestead Road to link bridleway and byway network | E69: note HCC CAP to be reviewed soon | F69: Tim Squire | G69: Y | J69: Green | K69: Access land | M69: CAP (399, 396) | N69: Hampshire County Council Countryside Service: Alison.perry@hants.gov.uk / petronella.nattrass@hants.gov.uk; 02392 592409 / 01962 845326 | Q69: HCC | R69: 2023
A70: Hawkely | B70: EHDC | C70: Hawkley Village Pond | D70: Refurbish Hawkley Village Pond (re-line - pending further evidence) | F70: Emily Brennan | G70: Y | J70: Green | K70: Biodiversity project | L70: 35000 | M70: Seeking further evidence. Cost estimate by officers based on similar projects. | N70: Hawkely Parish Rep | O70: 2013-04-01 | T70: =L70-S70 -> 35000
A71: Hubs and Gateways | B71: East Hampshire | C71: QECP | D71: Specific projects identified on Full IDP list at Clanfield Parish | J71: Green | K71: Access land | L71: 250000 | M71: c£1-1.5m scheme to be completed over one year commencing 1 April 2016.For QECP the potential sums are much smaller, with the current estimated cost being £1m, but could be supplemented by some provision from CIL revenues. The anticipated contribution from SDNPA is currently estimated at £100,000 to £250,000. https://www.southdowns.gov.uk/wp-content/uploads/2015/12/PP_2015December-17-Agenda-Item-10.pdf
A72: Lewes | B72: Lewes | C72: River-side, Lewes | D72: Riverside path on east side (Timberyard Lane to Cliffe Bridge) and west side (Cliffe Bridge to Willeys Bridge) | F72: Tim Squire | G72: Y | J72: Green | K72: Access land | L72: 0 | M72: Provided by North Street Quarter developer directly. | N72: Friends of Lewes Society | O72: 2013-06-01 | Q72: Associated developers.
A73: Lewes | B73: Lewes | C73: North of Phoenix Causeway Bridge on west side and north of Willeys Bridge on east side | D73: Flood management | F73: Ray Drabble | G73: Y | J73: Green | K73: Flood management | L73: 0 | M73: Provided by North Street Quarter developer directly. | N73: Friends of Lewes Society | O73: 2013-06-01 | Q73: Santon North Street Ltd on west side; Environment Agency on east side. | V73: RCD
A74: Liss | B74: EHDC | C74: Riverside Railway Walk | D74: River Ems Improvements (added by Chris Manning, from Environment Agency WFD nursery list therefore needs confirmation). | E74: The River Ems is a heavily modified waterbody, which is failing under WFD against fish, invertebrates and flow. Through PR14/AMP6 Portsmouth Water are improving the their augmentation to the river and address habitat issues at the top of the catchment. This will improve the waterbody but further work is required to reach Good Ecological Potential, and reverse the failing ecology. The suggest project will address fish passage issues at a number of sites as outline in previously commisioned ecological reports on the Ems. | F74: Emily Brennan | G74: Y | J74: Green | K74: Biodiversity project | L74: 100000 | M74: South East River Basin Management Plan, WFD | N74: CM has included this on behalf of EA. NB, CM has developed a synergy between IDP and EA Integrated Environment Programme (IEP) to ensure up-to-date list potnetial associated projects. | V74: CM
A75: Petersfield | B75: EHDC | C75: The Heath | D75: Major Project (erosion control around play area, treatment to Pond margins following erosion, possbile creation of extra islands, woodland thinning). | G75: Y | J75: Green | K75: Biodiversity project | L75: 675000 | M75: Possible Heritage Lottery bid, grants and SDNPA involvement. Likely to be funded over several years with work commencing on erosion control and bank erosion in short term. Petersfield Neighbourhood Plan Group provided costings. | N75: Petersfield Town Council | O75: 2014-08-01 | R75: 2015/16 | S75: HLF funding bid
A76: Petersfield | B76: EHDC | C76: Merrits Meadow North | D76: Renovate derelict meadow and water courses | G76: Y | J76: Green | K76: Biodiversity project | L76: 50000 | M76: Petersfield Neighbourhood Plan Group provided costings. | N76: Petersfield Town Council | O76: 2014-08-01 | Q76: Petersfield Town Council and SDNPA Rangers following transferral of ownership | R76: 2015/16
A77: Petersfield | B77: EHDC | C77: Love Lane Recreation Ground | D77: New Community Park | G77: Y | J77: Green | K77: Open space | L77: 250000 | M77: Planned to be constructed in conjunction with the new Youth/Community Facility Building to provide an attractive community park. Petersfield Neighbourhood Plan Group provided costings. | N77: Petersfield Town Council | O77: 2014-08-01 | R77: 2025
A78: Pyecombe | B78: MSDC | C78: Wolstonbury Hill | D78: Refurbish pond at Wolsonbury Hill | F78: Emily Brennan | G78: Y | J78: Green | K78: Biodiversity project | L78: 35000 | M78: Cost estimate by officers based on similar projects. | N78: National Trust; Jane.arnott@nationaltrust.org.uk; jane.cecil@nationaltrust.org.uk; National Trust - London and South East, Polesden Lacey, Dorking, Surrey, RH5 6BD, 01372 455010 | O78: 2013-07-01
A79: River Itchen | B79: WCC | C79: River Itchen | D79: River enhancements in physically / visually accessible reaches in and around Winchester to improve aesthetic appeal and biodiversity value | G79: Y | J79: Green | K79: Biodiversity project | L79: 50000 | M79: Capital to Revenue: 9 to 1 | N79: David.Rumble@hiwwt.org.uk Hampshire & Isle of Wight Wildlife Trust | O79: 2014-10-01 | R79: 2017 | U79: People Places; Living Landscapes
A80: Rogate | B80: EHDC | C80: Habin Hill to Garbitts Wood | D80: Tidal Adur Strategy & delivery (added by Chris Manning, from Environment Agency WFD nursery list therefore needs confirmation). | E80: Delivery of the first joint FCRM and WFD flood defence strategy. The stragegy is the first to integrate sustainable cost effective flood defence management and WFD objectives. It is not possible to deliver WFD in isolation in this waterbody due to the downstream flood risk implications. | F80: Emily Brennan | G80: Y | J80: Green | K80: Biodiversity project | L80: 30000 | M80: South East River Basin Management Plan, WFD | N80: CM has included this on behalf of EA. NB, CM has developed a synergy between IDP and EA Integrated Environment Programme (IEP) to ensure up-to-date list potnetial associated projects. | V80: CM
A81: Rogate | B81: EHDC | D81: Community Orchard provision and conservation of Parish-held lands. | F81: Pete Currell | G81: Y | J81: Green | K81: Community Use G.I. | L81: 30000 | M81: Feb 2012/May 2013 | N81: Rogate Parish | O81: 2013-07-01
A82: Rottingdean | B82: Brighton Hove | C82: Rottingdean | D82: Teville Stream restoration (added by Chris Manning, from Environment Agency WFD nursery list therefore needs confirmation). | E82: Phase 3 of the Teville Restoration Project. Under WFD the Teville stream catchment is classified in Poor condition. The stream is heavily culverted, acting as drainage for a large urban area, consequently suffering form a high sediment load. The lake acts as a balancing pond and has subsequently silted up. The projects preferred option is to implement a RTE creating more of a natural brackish intertidal habitat. Improving the recreational ammenity for the local community. NB, this is not within the SDNP however, the stream rises very close to the SDNP boundary; access & recreation links to the SDNP could certainly be developed. (Chris Manning) | F82: Emily Brennan | G82: Y | J82: Green | K82: Biodiversity project | L82: 390000 | M82: South East River Basin Management Plan, WFD | N82: CM has included this on behalf of EA. NB, CM has developed a synergy between IDP and EA Integrated Environment Programme (IEP) to ensure up-to-date list potnetial associated projects. | V82: CM
A83: Storrington and Sullington | B83: Horsham | C83: Storrington | D83: Refurbish village pond | F83: Emily Brennan | G83: Y | J83: Green | K83: Biodiversity project | L83: 35000 | M83: Undertaking NP process - more evidence in due course. Cost estimate by officers based on similar projects. | N83: Storrington and Sullington Parish Rep | O83: 2013-04-01 | T83: =L83-S83 -> 35000
A84: Twyford | B84: EHDC | C84: Itchen Navigation / Twyford Meads Water Meadow | D84: Upper Itchen Pond Project (added by Chris Manning, from Environment Agency WFD nursery list therefore needs confirmation). | E84: To assess what is considered to be a naturalised sediment load in the upper Itchen Online Ponds through assessing historical loading and ecosystem dynamics, includes Arlesford Pond a WFD Lake which is showing a deterioration since original classification in 2009. This is required to deliver an element of the diffuse water pollution plan (a remedy for the Itchen SAC which forms part of the Protected Areas Annex D requirements), and to allow us to ascertain a more accurate sedimentation target for condition assessment of the SSSI. | F84: Emily Brennan | G84: Y | J84: Green | K84: Biodiversity project | L84: 22400 | M84: South East River Basin Management Plan, WFD | N84: CM has included this on behalf of EA. NB, CM has developed a synergy between IDP and EA Integrated Environment Programme (IEP) to ensure up-to-date list potnetial associated projects. | V84: CM
A85: West Weald | C85: 240 km2 in West Sussex/Surrey between Billingshurst/Midhurst/Haslemere/Cranleigh | D85: West Weald Landscape Project | F85: Emily Brennan | G85: Y | J85: Green | K85: Biodiversity project | L85: =40000*10 -> 400000 | M85: Landowner advisory and habitat improvement targets exceeded. Annual reports available from 2009/10. Proponent suggests ongoing cost of £40,000 pa (but partly self-funded through donations etc). Capitalised for CIL purposes. | N85: SDNPA: Biodiversity Lead (Emily Brennan) | O85: 2013-09-01 | Q85: Petra Billings Sussex Wildlife Trust leads | S85: Some budget carry forward predicted from April 2014 plus potentially a contribution from WT | T85: £20,000 pa
A86: Winchester | B86: WCC | C86: St Catherine's Hill Nature Reserve, Winchester | D86: Access Infrastructure: Scoping (phase 1) and upgrade / replacement (phase 2) of fixtures & surfaces to control erosion on this highly popular nature reserve | G86: Y | J86: Green | K86: Access land | L86: 100000 | M86: Phase 1 (Y1-3) £5k; Phase 2 (Y 4-15) £50k-£100k. Capital to Revenue: 10 to 1 | N86: David.Rumble@hiwwt.org.uk Hampshire & Isle of Wight Wildlife Trust | O86: 2014-10-01 | R86: 2030 | U86: People Places; Living Landscapes
A87: Worldham | B87: EHDC | C87: Site identified on Wyck Lane (Contingency = elsewhere East Worldham village) | D87: Community Open Space: wild flower meadow, benches, fencing, exercise equipment. | G87: Y | J87: Green | K87: Open space | L87: 50000 | M87: Parish Plan. Cost: officer estimate based on similar project - does not include land purchase. | N87: Worldham Parish Rep | O87: 2013-04-01 | Q87: Worldham Parish Council | T87: =L87-S87 -> 50000
A88: Storrington and Sullington | B88: Horsham | C88: Storrington | D88: New GP surgery | E88: Unable to comment | F88: Andy Beattie | H88: Y | I88: Y | J88: Health | K88: General Health | L88: 1000000 | M88: Undertaking NP process - more evidence in due course | N88: Storrington and Sullington Parish Rep | O88: 2013-04-01 | T88: =L88-S88 -> 1000000
A89: Washington | B89: Horsham | C89: Washington Village | D89: New GP Surgery | E89: Unable to comment | F89: Andy Beattie | H89: Y | I89: Y | J89: Health | K89: General Health | L89: 200000 | M89: Parish Plan 2004. Currently, Washington residents travel to Storrington to use the already over-subscribed surgery. With a further 78 dwellings in the parish due shortly (and a significant increase in the Storrington catchment area also), Washington would benefit from having a surgery of it’s own. The parish has a predominantly older population and the demand for health services is set to increase. | N89: Washington Parish | O89: 2013-04-01 | R89: 2020 | S89: 0 | T89: =L89-S89 -> 200000
A90: Cuckmere Valley | B90: Wealden | C90: Alfriston | D90: Address a range of issues to provide alternative car parking, safer experience for residents and visitors, protect historic buildings and boost the economy | E90: Look to Europe, CIL, LEPs for funding | F90: Andy Beattie | G90: Y | H90: Y | I90: Y | J90: Social & Leisure | K90: Public realm improvement | L90: 2000000 | M90: Parish Plan , Consultation, | N90: SDNPA | O90: 2014-07-01 | Q90: ESCC, Wealden DC | R90: 2015/2020 | V90: Abt
A91: Ditchling | B91: Lewes | C91: Ditchling centre | D91: Refurbish playing fields and changing facilities for pre-school use in the day time. | F91: Chris Patterson | G91: Y | H91: Y | I91: Y | J91: Social & Leisure | K91: Sports centres, equipment | L91: 50000 | N91: Ditchling Society | O91: 2013-04-01 | T91: =L91-S91 -> 50000
A92: Droxford | B92: EHDC | C92: Pavilion | D92: Upgrade Pavilion | F92: Chris Patterson | G92: Y | H92: Y | I92: Y | J92: Social & Leisure | K92: Sports centres, equipment | L92: 50000 | N92: Droxford Parish Rep | O92: 2013-04-01 | T92: =L92-S92 -> 50000
A93: East Dean & Friston | B93: Wealden | C93: East Dean / Beachy Head | D93: Flint wall repairs | F93: Pete Currell | G93: Y | I93: Y | J93: Social & Leisure | K93: Cultural heritage | L93: =5000*10 -> 50000 | M93: Failing walls. Proponent suggests annual cost of £5000. Capitalised for CIL purposes over 10 years. | N93: The Gilbert Estate, The Estate Office, The Green, East Dean, East Sussex, BN20 0BY, Charlie@beachyhead.org.uk, 01323 423 906 | O93: 2013-06-01 | Q93: Gilbert Estate | R93: ongoing | S93: ?
A94: Findon | B94: Arun | C94: Neighbourhood Plan Area | D94: Village Life Enhancement, public realm, traffic and other | H94: y | I94: y | J94: Social & Leisure | K94: Public realm improvement | L94: 400000 | M94: Conservation Area Appraisal Management Plan and Village Plan | N94: Andy Beattie on behalf Parish Council | O94: 2015-12-01 | S94: WSCC
A95: Hambledon | B95: EHDC | C95: Village Centre | D95: Provide Museum/Heritage Centre (cricket, lemonade manufacture, vineyard, trades); including shop/café/information/arts centre | F95: Pete Currell | G95: Y | H95: Y | I95: Y | J95: Social & Leisure | K95: Cultural heritage | L95: 1500000 | M95: £3,000 for feasibility study + £2.5m for build costs. Annual Parish Meeting | N95: Hambledon Parish | O95: 2013-07-01 | Q95: Parsih Council | R95: 2016 | S95: 0
A96: Stanmber Park | B96: Brighton Hove | C96: Stanmer Park | D96: Hubs and Gateways: Home Farm Complex (SDNP profile) and New Eastern Area Office | J96: Social & Leisure | K96: Cultural heritage | L96: 300000 | M96: Subject to a detailed business plan (to be worked up if the Stage 1 HLF bid is successful), the SDNPA makes a total grant of £300,000 to the two projects for Stanmer Park: new premises for the Eastern Area office and greater SDNP public profile in the Home Farm complex. https://www.southdowns.gov.uk/wp-content/uploads/2015/12/PP_2015December-17-Agenda-Item-10.pdf | N96: SDNPA | O96: 42339 | P96: Yes | Q96: SDNPA & Brighton and Hove City Council
A97: Lavant | B97: CDC | C97: Football Pitch, Lavant | D97: Refurbish sports facilities | F97: Chris Patterson | G97: Y | H97: Y | I97: Y | J97: Social & Leisure | K97: Sports centres, equipment | L97: 50000 | N97: Lavant Parish Rep | O97: 2013-04-01 | T97: =L97-S97 -> 50000
A98: Liss | B98: EHDC | C98: West Liss Pavilion | D98: West Liss Pavilion / Community Hall / scout hut: Ongoing project. | F98: Chris Patterson | G98: Y | H98: Y | I98: Y | J98: Social & Leisure | K98: Sports centres, equipment | L98: 400000 | M98: Village Design Statement | N98: Liss Parish Council | O98: 2013-08-01 | R98: by 2018 | S98: 200000
A99: Liss | B99: EHDC | C99: Newman Collard Playground | D99: Sports: Multi-use Games Area (MUGA) | F99: Chris Patterson | G99: Y | H99: Y | I99: Y | J99: Social & Leisure | K99: Sports centres, equipment | L99: 50000 | N99: Liss Parish Council | O99: 2013-08-01 | R99: by 2018
A100: Liss | B100: EHDC | C100: Liss Forest | D100: Sports: Replacement equipment | F100: Chris Patterson | G100: Y | H100: Y | I100: Y | J100: Social & Leisure | K100: Sports centres, equipment | L100: 40000 | N100: Liss Parish Council | O100: 2013-08-01 | R100: by 2021
A101: Liss | B101: EHDC | C101: Newland Collard Pavilion | D101: Sports: Drainage improvements | F101: Chris Patterson | G101: Y | H101: Y | I101: Y | J101: Social & Leisure | K101: Sports centres, equipment | L101: 25000 | N101: Liss Parish Council | O101: 2013-08-01 | R101: by 2018
A102: Petersfield | B102: EHDC | C102: The Heath | D102: Tumuli investigation (earth mound barrows) | E102: Project commenced until 2018 | G102: Y | H102: Y | I102: Y | J102: Social & Leisure | K102: Cultural heritage | L102: 150000 | M102: Petersfield Neighbourhood Plan Group provided costings | N102: Petersfield Town Council | O102: 2014-08-01 | Q102: Petersfield Museum | R102: 2015-2018
A103: Petersfield | B103: EHDC | C103: The Avenue Pavilion Playing Fields | D103: New play area | G103: Y | H103: Y | I103: Y | J103: Social & Leisure | K103: Play space | L103: 60000 | M103: Petersfield Neighbourhood Plan Group provided costings | N103: Petersfield Town Council | O103: 2014-08-01 | R103: 2017/18
A104: Petersfield | B104: EHDC | C104: Borough Road | D104: Refurbish Play Area | G104: Y | H104: Y | I104: Y | J104: Social & Leisure | K104: Play space | L104: 50000 | M104: Petersfield Neighbourhood Plan Group provided costings | N104: Petersfield Town Council | O104: 2014-08-01 | R104: 2015/16
A105: Petersfield | B105: EHDC | C105: Heath | D105: Refurbish Play Area | G105: Y | H105: Y | I105: Y | J105: Social & Leisure | K105: Play space | L105: 50000 | M105: Petersfield Neighbourhood Plan Group provided costings | N105: Petersfield Town Council | O105: 2014-08-01 | R105: 2015/16
A106: Petersfield | B106: EHDC | C106: Town Centre | D106: Shared-space pedestrian scheme | G106: Y | H106: Y | I106: Y | J106: Social & Leisure | K106: Public realm improvement | L106: 500000 | M106: Neighbourhood Plan Scheme to create a shared-space scheme from the railway station in Lavant Street through to the bottom of the High Street. Details to be confirmed. Petersfield Neighbourhood Plan Group provided costings. | N106: Petersfield Town Council | O106: 2014-08-01 | R106: 2025
A107: Petersfield | B107: EHDC | C107: Lavant Street | D107: National Park Gateway Project | G107: Y | H107: Y | I107: Y | J107: Social & Leisure | K107: Public realm improvement | L107: 300000 | M107: Plans to plant trees to create an avenue type of feel; shared space scheme at railway station entrance; reduction in road width and increase in pavement width to deter inappropriate parking and speed of travel plus encourage pedestrians; provision of cycle racks; alteration of road priorities along Lavant Street at Charles Street junction and also raised crossing points at junctions with Charles Street and Chapel Street plus near footway to Swan Street car park. Petersfield Neighbourhood Plan Group provided costings: £250,000-300,000 | N107: Petersfield Town Council | O107: 2014-08-01 | R107: ?
A108: Petersfield | B108: EHDC | C108: The Heath | D108: Replace boardwalk along Sussex Road | G108: Y | H108: Y | I108: Y | J108: Social & Leisure | K108: Public realm improvement | L108: 50000 | M108: Current facility is well used but showing signs of age. Maintenance keeps it in acceptable condition. Petersfield Neighbourhood Plan Group provided costings. | N108: Petersfield Town Council | O108: 2014-08-01 | R108: 2022
A109: Petersfield | B109: EHDC | C109: Petersfield | D109: Taro leisure centre redevelopment | F109: Chris Patterson | G109: Y | H109: Y | I109: Y | J109: Social & Leisure | K109: Sports centres, equipment | L109: 2500000 | M109: Petersfield Plan | N109: SDNPA:Western Area Manager (Nick Heasman) | O109: 2014-01-01 | Q109: EHDC/Private | R109: 2020 | S109: none | T109: 2500000
A110: Petersfield | B110: EHDC | C110: Penns Farm | D110: Extend football pitches; new changing facilities provision; refurbish play area. | G110: Y | H110: Y | I110: Y | J110: Social & Leisure | K110: Sports centres, equipment | L110: 2000000 | M110: Penns Field B to be converted into new football pitches with a new changing facility for football to be provided plus an appropriate store for the Town Juniors and PTC grounds staff. Petersfield Neighbourhood Plan Group provided costings. | N110: Petersfield Town Council | O110: 2014-08-01 | R110: 2015/16
A111: Petersfield | B111: EHDC | C111: Penns Farm | D111: New All Weather 3G Pitch for Rugby Club | G111: Y | H111: Y | I111: Y | J111: Social & Leisure | K111: Sports centres, equipment | L111: 400000 | M111: Funding required for project and precise site on the Penns Farm complex still to be agreed. Potentially could replace existing rugby training pitch. Petersfield Neighbourhood Plan Group provided costings. | N111: Petersfield Town Council | O111: 2014-08-01 | R111: 2016
A112: Petersfield | B112: EHDC | C112: Penns Farm | D112: 4 x New Tennis Courts | G112: Y | H112: Y | I112: Y | J112: Social & Leisure | K112: Sports centres, equipment | L112: 300000 | M112: Existing tennis courts at The Avenue are well used. Seeking to create sports hub at Penns Farm playing fields with facilities potentially to be attached to and managed by Taro Centre. Petersfield Neighbourhood Plan Group provided costings. | N112: Petersfield Town Council | O112: 2014-08-01 | R112: 2020
A113: Petersfield | B113: EHDC | C113: The Avenue Pavilion Playing Fields | D113: Refurbish Pavilion (inc. new ceiling, windows, heating system, lights and toilets) | G113: Y | H113: Y | I113: Y | J113: Social & Leisure | K113: Sports centres, equipment | L113: 150000 | M113: Heating system currently adequate but only just. Building would benefit from greater fuel efficiency measures. Petersfield Neighbourhood Plan Group provided costings. | N113: Petersfield Town Council | O113: 2014-08-01 | R113: 2020
A114: Petersfield | B114: EHDC | C114: Love Lane Recreation Ground | D114: Skatepark Phase 2 | G114: Y | H114: Y | I114: Y | J114: Social & Leisure | K114: Sports centres, equipment | L114: 150000 | M114: Planning permission needed followed by funding. Footprint of extension agreed to include skatepark facilities for the disabled – the first in the country. Petersfield Neighbourhood Plan Group provided costings. | N114: Petersfield Town Council | O114: 2014-08-01 | R114: 2016/17
A115: Petersfield | B115: EHDC | C115: Love Lane Recreation Ground | D115: Refurbish Pavilion (inc. sewerage and facilities) | G115: Y | H115: Y | I115: Y | J115: Social & Leisure | K115: Sports centres, equipment | L115: 50000 | M115: Pavilion currently used by Nursery and Juniors football club but not really suiting either group in present state. Planned re-organisation of internal aspects of building plus sewerage service and water drainage generally. Petersfield Neighbourhood Plan Group provided costings. | N115: Petersfield Town Council | O115: 2014-08-01 | R115: 2017/18
A116: Petworth | B116: CDC | C116: Within parish | D116: Indoor sports centre, pool | F116: Chris Patterson | G116: Y | H116: Y | I116: Y | J116: Social & Leisure | K116: Sports centres, equipment | L116: 1000000 | M116: Draft Petworth Neighbourhood Plan Scoping Study | N116: Petworth Parish Council | O116: 2013-06-01 | Q116: County Council | R116: 2015-2018 | S116: None
A117: Ringmer | B117: Lewes | C117: ??? | D117: Provision of public football and hockey pitches and tennis courts. | E117: Needs location | F117: Chris Patterson | G117: Y | H117: Y | I117: Y | J117: Social & Leisure | K117: Sports centres, equipment | L117: 850000 | M117: LDC 2006 Study – Ringmer has none. Ringmer Draft NDP. Cost provided by parish council rep to consultation workshop | N117: Ringmer Parish Rep | O117: 2013-04-01 | T117: =L117-S117 -> 850000
A118: Rodmell | B118: Lewes | C118: Village centre | D118: Disabled access and parking for the pavilion | F118: Chris Patterson | G118: Y | H118: Y | I118: Y | J118: Social & Leisure | K118: Sports centres, equipment | L118: 100000 | M118: Requirement as none existing | N118: Rodmell Parish Rep | O118: 2013-04-01 | Q118: Rodmell PC | R118: ? | S118: None | T118: =L118-S118 -> 
A119: Rogate | B119: EHDC | C119: Village Hall Recreation Ground | D119: Refurbish all-weather pitch including practice tennis wall & flood lighting; fencing around bowling green, spectator seating. | F119: Chris Patterson | G119: Y | H119: Y | I119: Y | J119: Social & Leisure | K119: Sports centres, equipment | L119: 40000 | M119: 2007 Parish Plan; July 2007 | N119: Rogate Parish | O119: 2013-07-01
A120: Rogate | B120: EHDC | C120: Neighbourhood Plan Area | D120: Village Life Enhancement, public realm, traffic and other | H120: y | I120: y | J120: Social & Leisure | K120: Public realm improvement | L120: 750000 | M120: Neighbourhood Plan and preliminary plans already produced | N120: Andy Beattie, on behalf Fiona Dix and Gordon MacAra (Parish and District Councillor) | O120: 2015-12-01 | R120: 2016/17 | S120: residents and WSCC
A121: Selborne | B121: EHDC | C121: Oakhanger & Goslings Croft Selborne | D121: Playgrounds x 2 | F121: Chris Patterson | G121: Y | H121: Y | I121: Y | J121: Social & Leisure | K121: Play space | L121: 80000 | M121: Young families without nearby, safe recreation facilities. | N121: Selborne Parish Council | O121: 2013-06-01 | Q121: Parish Council | R121: 2015 | S121: 5000 | T121: =L121-S121 -> 75000
A122: Storrington and Sullington | B122: Horsham | C122: Sullington Manor Farm | D122: Historic Barn Conversion: Café / Visitor Centre | G122: Y | H122: Y | I122: Y | J122: Social & Leisure | K122: Cultural Heritage | L122: 160000 | M122: Provided by proponent: Repair of the barn has been specified and costed at £110,000. Cost of interpretation material is estimated at £10,000. Cost of installation of café is estimated at additional £40,000. Sullington Manor Farm is a 500 acre farm just east of Storrington entirely within the South Downs National Park. The farmstead is a now rare example of a previously common manorial farmstead with the former manorial chapel, now church, immediately adjacent to the former manor house. Sullington Manor Farm is privately ownedbut there are two services at the church on most Sundays and hundreds of visitors to the church throughout the year who use farm facilities for parking and access; we have five holiday cottages and almost 1000 visitors from all over the world stay at Sullington each year; in addition buildings at Sullington are used for charitable fundraising events, for art groups, history societies and other interested groups. It is proposed to provide interpretation to satisfy the continual requests for information received from the many curious visitors, in the main body of the barn. It is also proposed to provide a café to provide simple refreshments, in the northern lean-to. Repair of the building to house the interpretation centre will be by experienced timber framing professional and will maintain the historic detail of the barn which tells of its former purposes. Repair of a 400 year old barn to keep it as a barn is not commercially sensible and funding is required to deliver this part of the project. The café will operate to cover the costs of running the centre (and café) and to ensure that the future of the building is self-financing. | N122: Gail and Grahame Kittle Byre Cottages at Sullington Manor Farm Tel: 01903 745754 www.sussexholidaycottages.biz Gail Kittle <info@sussexholidaycottages.biz> | O122: 2014-12-01 | P122: Y | Q122: Private Enterprise (proponent) | R122: 2016 | T122: =L122-S122 -> 160000
A123: Twyford | B123: EHDC | C123: Hazeley Road | D123: Twyford Waterworks Museum | E123: NB this is still a Southern Water owned operational site. Might there be a legitimate request for CIL funding associated with the onsite museum? If so, reclassify to 'Social & Leisure'? (Chris Manning) | F123: Chris Manning | G123: Y | H123: Y | I123: Y | J123: Social & Leisure | K123: Cultural Heritage | L123: 100000 | M123: Asbestos removal, security systems and general restoration costs of the building. Important scheduled Ancient Monument – Edwardian Pumping station still commercially pumping 5 million gallons of water a day. Twyford’ s only tourist attraction. | N123: Twyford Parish | O123: 2013-06-01 | Q123: Twyford Waterworks Trust | S123: None | T123: =L123-S123 ->  | V123: Anne Bone?
A124: Washington | B124: Horsham | C124: The Recreation Ground, Washington | D124: Replacement of children's play area. | F124: Chris Patterson | G124: Y | H124: Y | I124: Y | J124: Social & Leisure | K124: Play space | L124: 65000 | M124: Parish Minutes. The current equipment is over 10 years old and showing signs of deterioration. Washington PC would like to replace it with up to date equipment, providing facilities for children of all abilities and needs, constructed from sustainable and environmentally sympathetic materials. Councillors understand the importance of providing an area for children and families to exercise and socialise outdoors and are planning to replace the existing equipment before it becomes unusable. | N124: Washington Parish | O124: 2013-05-01 | R124: 2018 | S124: 6500
A125: Winchester | B125: WCC | C125: St Cross Meadows, Winchester | D125: Reinstatement / rebuild of heritage water meadow features to restore a cultural landscape and improve conditions for biodiversity at this highly popular visitor destination | G125: Y | H125: Y | I125: Y | J125: Social & Leisure | K125: Cultural Heritage | L125: 25000 | M125: Capital to Revenue: 10 to 1 | N125: David.Rumble@hiwwt.org.uk Hampshire & Isle of Wight Wildlife Trust | O125: 2014-10-01 | R125: 2017 | U125: People Places; Living Landscapes
A126: Wisborough Green | B126: CDC | C126: The Green, Wisborough Green | D126: Sports Pavilion Refurbishment: upgrade changing and toilet facilities. | F126: Chris Patterson | G126: Y | H126: Y | I126: Y | J126: Social & Leisure | K126: Sports centres, equipment | L126: 350000 | M126: Ward Profile 2011 WG Ward produced by Corporate Info Team within CDC. Building starting to look 40 years old. In great use at weekends by large numbers playing cricket, rugby, football and a range of village events such as the Fete, Lawnmower race, Balloon festival, School fete, Fair et al.but shortcomings evident | N126: Wisborough Green Parish Rep | O126: 2013-04-01 | Q126: Parish Council/Sports Association | S126: 0 | T126: =L126-S126 -> 350000
A127: Wisborough Green | B127: CDC | C127: The Green, Wisborough Green | D127: Sports field renovation | F127: Chris Patterson | G127: Y | H127: Y | I127: Y | J127: Social & Leisure | K127: Sports centres, equipment | L127: 25000 | M127: Ward Profile 2011 WG Ward produced by Corporate Info Team within CDC. Building starting to look 40 years old. In great use at weekends by large numbers playing cricket, rugby, football and a range of village events such as the Fete, Lawnmower race, Balloon festival, School fete, Fair et al.but shortcomings evident | N127: Wisborough Green Parish Rep | O127: 2013-04-01 | Q127: Parish Council/Sports Association | S127: 0 | T127: =L127-S127 -> 25000
A128: Wiston | B128: Horsham | C128: Wiston Village Centrer | D128: New children’s play area. | F128: Chris Patterson | G128: Y | H128: Y | I128: Y | J128: Social & Leisure | K128: Play space | L128: 50000 | M128: Village Plan. Currently there are no facilities for children or families in the village. Councillors would be pleased to provide a small play area, for children of all abilities and needs, constructed from sustainable, environmentally sympathetic materials. Many younger families are moving into the village, but have to drive to Ashington or Steyning for any play or exercise facilities. We have many visitors to the area, due to rugby fixtures, Wiston Tea Room and campsite and walkers on the South Downs Way, but there is nowhere for children to play and socialise. | N128: Wiston Parish Council | O128: 2013-06-01 | R128: 2015 | T128: =L128-S128 -> 50000
A129: A3 corridor | B129: EHDC | C129: A3/B3006 | D129: Work with Highways Agency to address last remaining at-grade junction on the A3-North of Liss: Ham Barn roundabout, junction of A3 with B3006 | E129: Worth further investigation | F129: Andy Beattie | H129: Y | J129: Transport | K129: Highway works | L129: 200000 | M129: Hampshire Strategic Infrastructure Statement / East Hants District Transport Statement 2012 | N129: Hampshire County Council | O129: 2013-02-01 | Q129: Highways Agency / Hampshire County Council | R129: 2017 | S129: none | T129: 200000 | U129: to be funded by HA
A130: A3 corridor | B130: EHDC | C130: A3 crossing west and south of Petersfield | D130: New cycle/footbridge(s) across A3 west of Petersfield (Bedford Road and/or Osier Road/Paddock Way). Creating cycle route from Petersfield Train station to Stroud (via several existing footpaths approaching and alongside western side of A3) and also to Bu | E130: Petersfield to QECP is being delivered by LSTF HCC funding 14/15 | H130: Y | J130: Transport | K130: Rights of Way | L130: 500000 | M130: Petersfield Neighbourhood Plan: Getting around objective 1 – Make petersfield a more pedestrian and cycle friendly place to live. Policy GAP2 - need to establish a rolling programme of cycle routes and pedestrian improvements, this should include employment areas of the town (Bedford Road Industrial Estate for example). Section 11.3 - create a cycle path across the A3 and railway to allow access to the West of Petersfield (towards Stroud) potentially using an existing underpass at Osier Road. Community feedback included requests to ‘provide new/safer on-street cycle routes and more off-road routes into the surrounding countryside’. New offroad A3 crossing @ £500,000 + 14km cyclepath @ £80,000/km = £1.62m. (£2.12m with two A3 crossings) Hampshire County Council Countryside Access Plan (CAP)(4486). Footpath / cycle path along Greenway Lane (1km from village to A3) identified in Buriton Parish Plan | N130: Petersfield Town Council | O130: 2014-08-01 | Q130: SDNPA Rights of Way. LSTF. Hampshire County Council Countryside Service: Alison.perry@hants.gov.uk / petronella.nattrass@hants.gov.uk; 02392 592409 / 01962 845326 | R130: 2017/18
A131: Arun | B131: Arun | C131: West side of River Arun | D131: Littlehampton to Arundel Green Link (Arun Local Plan Policy TSP2) along west bank of River Arun to Arundel possible expansion into SDNP. EA Lower Tidal River Arun Study – split into multiple units of works through Arun, SDNP and into Horsham. EA looking at gap funding with some overlap between Arun and SDNPA jurisdictions around Adundel. | F131: Tim Squire | H131: Y | J131: Transport | K131: Cycling | L131: 500000 | M131: Cost estimate based on 6km from Littlehampton to Arundel. Further route may continue further north into SDNP/Horsham District. | N131: Arun & Horsham District Councils | O131: 2014-10-01
A132: Berwick | B132: Wealden | C132: Berwick Station | D132: New cycle path Berwick Station to Alfriston: connecting station to SDNP across A27 | H132: Y | J132: Transport | K132: Cycling | L132: =2.4*80000 -> 192000 | M132: From Parish Council: Berwick is a small Wealden Parish partly within the SDNP. The Berwick Way is a cycle path/ footway to the south of Berwick Station which has been constructed in partnership with ESCC. The purpose of the project is to connect the ‘Berwick Station’ area, to the north of the Parish, with the ‘Lower Berwick’ and ‘Berwick Village’ areas of the Parish and give access to the SDNP. Unfortunately due to funding issues only phase one of the project has been completed and without external funding there is unlikely to be any further progress. | N132: Berwick Parish Council | O132: 2013-12-01 | P132: Partly | Q132: ESCC
A133: Brighton Area | B133: Brighton Hove | C133: Brighton & Hove (Outside of SDNP) | D133: Cycle lane across A27 flyover (double-roundabout) connecting north-end Dyke Road Avenue to south-end Devil's Dyke Road. (0.5km) | E133: More info reqd. Unaware of this scheme | F133: Alister Linton-Crook | H133: Y | J133: Transport | K133: Cycling | L133: 40000 | N133: Friends of the Earth (Chris Todd)
A134: Brighton Area | B134: Brighton Hove | C134: Brighton & Hove (Outside of SDNP) | D134: Improve access to start of Dyke Trail | E134: SDNPA can support. No costs or design yet | F134: Tim Squire | H134: Y | J134: Transport | K134: Rights of Way | L134: 80000 | M134: Discuss with National Trust regarding northern end. | N134: Friends of the Earth (Chris Todd)
A135: Brighton Area | B135: Brighton Hove | C135: Brighton & Hove (Outside of SDNP) Link Green Ridge to Waterhall | D135: Improve link across Mill Road: central reservation and 40mph speed limit. Bridge route upgraded to bridleway | F135: Tim Squire | H135: Y | J135: Transport | K135: Rights of Way | L135: 25000 | N135: Friends of the Earth (Chris Todd)
A136: Brighton Area | B136: Lewes | C136: Ditchling Road | D136: New footpath (off-road) from Ditchling Road (at A27) to Ditchling Beacon (3km) | F136: Tim Squire | H136: Y | J136: Transport | K136: Rights of Way | L136: 90000 | Q136: Link with current LSTF and Cycling in National Park schemes
A137: Buriton | B137: EHDC | D137: Community minibus (capital purchase of bus, not running costs) | E137: Details of capital and/or revenue costs and project objectives | F137: Allison Thorpe | H137: Y | J137: Transport | K137: Public Transport | L137: 50000 | M137: Parish Plan: subject to assessment of need | N137: Buriton Parish Council | O137: 2013-08-01
A138: Central | B138: CDC | C138: Area around Wisborough Green | D138: Community minibus (capital purchase of bus, not running costs) | E138: Details of capital and/or revenue costs and project objectives | F138: Allison Thorpe | H138: Y | J138: Transport | K138: Public Transport | L138: 50000 | M138: Feasibility Study undertaken (submitted to NPA) | N138: Wisborough Green Parish Rep | O138: 2013-04-01
A139: Central | B139: CDC/EHDC | C139: Rother Valley | D139: Midhurst to Petersfield Cycle Path on old railway line. | E139: Connect with Stedham to Midhurst scheme (LSTF WSCC delivery 14/15) | F139: Alister Linton-Crook | H139: Y | J139: Transport | K139: Cycling | L139: 1700000 | M139: Sustrans Feasibility Study led by 'Shortcut' March 2014. Rogate Annual Parish Meeting 2011 | N139: Rogate Parish Council; Elsted and Treyford Parish Rep | O139: 2013-07-01 | Q139: WSCC/HCC | R139: 2-3 yrs to deliver
A140: Cuckmere Valley | B140: Lewes | D140: New cycle route from Exceat to Seaford (2km from Seven Sisters Country Park to edge of Seaford along A259) | E140: More info reqd. Unaware of this scheme | F140: Alister Linton-Crook | H140: Y | J140: Transport | K140: Cycling | L140: 160000 | N140: SDNPA Eastern Downs Team (via Andy Beattie) | O140: 2013-08-01
A141: Denmead | B141: WCC | C141: Denmead | D141: Cycle path from Denmead to Corhampton (10km) | F141: Tim Squire | H141: Y | J141: Transport | K141: Cycling | L141: =10*80000 -> 800000 | M141: WCC IDP | N141: Hampshire County Council Countryside Service: Alison.perry@hants.gov.uk / petronella.nattrass@hants.gov.uk; 02392 592409 / 01962 845326 | R141: by 2023
A142: Duncton | B142: CDC | C142: Dunction High Street | D142: Footpath / cycle path from bus stop to shops (1km) | E142: More info reqd. Unaware of this scheme | F142: Alister Linton-Crook | H142: Y | J142: Transport | K142: Cycling | L142: 80000 | M142: Impossible to walk or cycle safely through village centre. | N142: Duncton Parish Rep | O142: 2013-04-01 | Q142: Chichester District Council, West Sussex County Council | T142: =L142-S142 -> 80000
A143: East Dean & Friston | B143: Wealden | C143: Parish-wide | D143: New cycle route alongside A259 from Friston Pond to Eastbourne GC. Approx 4km | E143: More info reqd. Feasibility Study reqd | F143: Alister Linton-Crook | H143: Y | J143: Transport | K143: Cycling | L143: 400000 | N143: SDNPA Eastern Downs Team (via Andy Beattie) | O143: 2013-08-01
A144: East Dean & Friston | B144: Wealden | C144: Mouth of Cuckmere River | D144: Pedestrian bridge | E144: SDNPA very unlikely to support this proposal to add a structure into an unspoilt landscape. The mouth to the Cuckmere will become unprotected under plans submitted by EA so a bridge would be at risk of damage anyway. | F144: Tim Squire | H144: Y | J144: Transport | K144: Rights of Way | L144: 80000 | M144: Lack of access to iconic English view | N144: The Gilbert Estate, The Estate Office, The Green, East Dean, East Sussex, BN20 0BY, Charlie@beachyhead.org.uk, 01323 423 906 | O144: 2013-06-01 | Q144: SDNPA / ESCC / Environment Agency | R144: 2018-2020 | S144: ?
A145: East Dean (West Sussex) | B145: CDC | C145: East Dean / Charlton. | D145: New Footpath from East Dean to Singleton via Charlton (3km) | F145: Tim Squire | H145: Y | J145: Transport | K145: Rights of Way | L145: 90000 | N145: East Dean Parish Rep | O145: 2013-04-01 | T145: =L145-S145 -> 90000
A146: East Hants | B146: EHDC | C146: East Hants villages to Alton Cycle Link; Alton, Selborne, Worldham, Farringdon, Chawton areas | D146: Upgrading/resurfacing of BOATs/bridleways so that the public can cycle from Alton into the East Hants Villages of East and West Worldham and to Selborne and Gilbert Whites House – Chawton and Farringdon – linking Jane Austen and Gilbert White and providing access from Alton railway station. Led by HCC, South Downs National Park Authority in partnership with local residents. | E146: More info reqd. Unaware of this scheme | F146: Alister Linton-Crook | H146: Y | J146: Transport | K146: Cycling | L146: 1000000 | M146: Hampshire County Council Strategic Infrastructure Statement / HCC Countryside Service | N146: Hampshire County Council | O146: 2013-02-01 | Q146: HCC | R146: 2015 | S146: LSTF Bid | T146: 0
A147: East Hants | B147: EHDC | C147: North East Hants | D147: Improvements and traffic management (Droxford, Hambledon and Twyford) | E147: Worth further investigation | F147: Andy Beattie | H147: Y | J147: Transport | K147: Highway works | L147: 310000 | M147: East Hampshire & Winchester Transport Statements 2012 contain full details of projects and locations | N147: Hampshire County Council | O147: 2013-02-01 | Q147: HCC/Developer Funding | R147: 2022 | S147: none | T147: 310000
A148: East Hants | B148: EHDC | C148: North East Hants | D148: Junction improvements, traffic calming and routing (Liss & Liphook,Petersfield, Sheet Village, Greatham and Buriton). | E148: Worth further investigation | F148: Andy Beattie | H148: Y | J148: Transport | K148: Highway works | L148: 250000 | M148: East Hampshire & Winchester Transport Statements 2012 contain full details of projects and locations | N148: Hampshire County Council | O148: 2013-02-01 | Q148: HCC/Developer Funding | R148: 2017 | S148: 45000 from s106 | T148: 205000
A149: East Hants | B149: EHDC | C149: North East Hants | D149: New and upgraded bus stop facilities (Liphook, Liss, Binsted): Build out for bus stop outside Tesco Express on Hill Brow Road. Upgrade existing bus stop facilities at the Jolly Farmer crossroads on the Blacknest corridor | F149: Allison Thorpe | H149: Y | J149: Transport | K149: Public Transport | L149: 35000 | M149: East Hampshire & Winchester Transport Statements 2012 contain full details of projects and locations | N149: Hampshire County Council | O149: 2013-02-01 | Q149: HCC/Developer Funding | R149: 2022 | S149: 10000 from minor works programme | T149: 25000
A150: East Hants | B150: EHDC | C150: East Hants | D150: Provision/ completion of footpaths, cycle routes, pedestrian crossings and other road safety measures (various locations within East Hampshire District) | F150: Tim Squire | H150: Y | J150: Transport | K150: Rights of Way | L150: 3490000 | M150: East Hampshire & Winchester Transport Statements 2012 contain full details of projects and locations | N150: Hampshire County Council | O150: 2013-02-01 | Q150: HCC/Developer Funding | R150: 2022 | S150: none | T150: 3490000
A151: East Hants | B151: EHDC | C151: North East Hants | D151: Provision / completion of footpaths, pedestrian crossings (Petersfield, Liss, Liphook) | F151: Tim Squire | H151: Y | J151: Transport | K151: Rights of Way | L151: 270000 | M151: East Hampshire & Winchester Transport Statements 2012 contain full details of projects and locations | N151: Hampshire County Council | O151: 2013-02-01 | Q151: HCC/Developer Funding | R151: 2017 | S151: 120000 | T151: 150000
A152: Eastbourne | B152: EBC | C152: Eastbourne | D152: Improved cycle route from Eastbourne Station to SDW | E152: This is being delivered by ESCC & EBC. Not sure if all funding is in place? | F152: Alister Linton-Crook | H152: Y | J152: Transport | K152: Cycling | L152: 0 | M152: Funded by ESCC and EBC | N152: SDNPA Strat Lead | O152: 2013-09-01 | Q152: ESCC, SDNPA
A153: Elsted and Treyford | B153: CDC | C153: Elstead Village | D153: Community minibus (capital purchase of bus, not running costs) | E153: Details of capital and/or revenue costs and project objectives | F153: Allison Thorpe | H153: Y | J153: Transport | K153: Public Transport | L153: 50000 | N153: Elsted and Treyford Parish Rep | O153: 2013-04-01 | T153: =L153-S153 -> 50000
A154: Fernhurst | B154: CDC | C154: Syngenta Site-Route Unknown | D154: Cycle paths including from Syngenta Site to village centre (c.4km) | E154: Route unknown. | F154: Alister Linton-Crook | H154: Y | J154: Transport | K154: Cycling | L154: =4*80000 -> 320000 | M154: Neighbourhood Plan | N154: Fernhurst Parish Rep | O154: 2013-04-01 | T154: =L154-S154 -> 320000
A155: Fernhurst | B155: CDC | D155: Community minibus (capital purchase of bus, not running costs) | E155: Details of capital and/or revenue costs and project objectives | F155: Allison Thorpe | H155: Y | J155: Transport | K155: Public Transport | L155: 50000 | M155: Neighbourhood Plan | N155: Fernhurst Parish Rep | O155: 2013-04-01 | T155: =L155-S155 -> 50000
A156: Graffam | B156: CDC | C156: Graffam Recreation Ground | D156: Improved car parking | E156: No detail | F156: Andy Beattie | H156: Y | J156: Transport | K156: Car Park | L156: 100000 | M156: Insufficient parking facilities for use | N156: Graffham Parish | O156: 2013-08-01 | S156: 0
A157: Hampshire | B157: EHDC | C157: Whitehill-Bordon | D157: New cycle route to complete ‘missing link’ in the Shipwrights Way between Whitehill-Bordon and Liphook | E157: David Deane on lead | F157: Alister Linton-Crook | H157: Y | J157: Transport | K157: Cycling | L157: 130000 | M157: Local need, CAP | N157: Hampshire County Council Countryside Service: Alison.perry@hants.gov.uk / petronella.nattrass@hants.gov.uk; 02392 592409 / 01962 845326 | O157: 2013-07-01 | Q157: HCC Countryside | R157: 2015-03-01 | S157: Linking Communities funding Confirmed
A158: Hampshire | C158: West Meon/Alton | D158: New cycle route between Alton and West Meon (using on- and off-road routes) as alternative to A32 (20km) | E158: More info reqd. Unaware of this scheme | F158: Alister Linton-Crook | H158: Y | J158: Transport | K158: Cycling | L158: =20*80000 -> 1600000 | M158: CAP, local need. Cost Not known (and permissions needed) | N158: Hampshire County Council Countryside Service: Alison.perry@hants.gov.uk / petronella.nattrass@hants.gov.uk; 02392 592409 / 01962 845326 | O158: 2013-07-01 | Q158: HCC Countryside | R158: 2023 | S158: none
A159: Hampshire | C159: Bishops Waltham to SDW at Corhampton | D159: New cycle route between Bishops Waltham and the South Downs Way National Trail (10km) | E159: More info reqd. Unaware of this scheme | F159: Alister Linton-Crook | H159: Y | J159: Transport | K159: Cycling | L159: =10*80000 -> 800000 | M159: CAP (339) | N159: Hampshire County Council Countryside Service: Alison.perry@hants.gov.uk / petronella.nattrass@hants.gov.uk; 02392 592409 / 01962 845326 | O159: 2013-07-01 | Q159: Parish Councils/HCC Countryside/ SDNPA | R159: 2023
A160: Hampshire | C160: Itchen Valley | D160: Complete off-road walking and cycling route along the Itchen Valley between Kings Worthy and Alresford, avoiding the B3047 and A31 (10km) | E160: More info reqd. Unaware of this scheme | F160: Alister Linton-Crook | H160: Y | J160: Transport | K160: Cycling | L160: =10*80000 -> 800000 | M160: CAP (433, 434) | N160: Hampshire County Council Countryside Service: Alison.perry@hants.gov.uk / petronella.nattrass@hants.gov.uk; 02392 592409 / 01962 845326 | Q160: HCC / Parish Councils / National Park Authority
A161: Hampshire | C161: Petersfield to QECP & SDW | D161: New cycle route from Petersfield to Queen Elizabeth Country Park and the South Downs Way | E161: Project being delivered by March 2015 | F161: Alister Linton-Crook | H161: Y | J161: Transport | K161: Cycling | L161: 800000 | M161: CAP | N161: Hampshire County Council Countryside Service: Alison.perry@hants.gov.uk / petronella.nattrass@hants.gov.uk; 02392 592409 / 01962 845326 | O161: 2013-07-01 | Q161: HCC Highways | R161: 2015-03-01 | S161: Linking Communities funding Confirmed
A162: Hampshire | C162: Bishops Waltham | D162: New cycle route Bishops Waltham to Swanmore College (3km) | E162: More info reqd. Unaware of this scheme | F162: Alister Linton-Crook | H162: Y | J162: Transport | K162: Cycling | L162: =3*80000 -> 240000 | M162: WCC IDP; Link important for both Swanmore and Bishops Waltham parishes; HCC Highways have done a feasibility study for on-road cycling route: Countryside Service assessing feasibility of upgrading footpaths to provide an off-road route. Link important for both Swannore and B Waltham | N162: Hampshire County Council Countryside Service: Alison.perry@hants.gov.uk / petronella.nattrass@hants.gov.uk; 02392 592409 / 01962 845326 | Q162: HCC Highways/ Countryside Service
A163: Hampshire | C163: Selborne | D163: Writers Way' New circular cycling route from Alton through Selborne, Chawton and Farringdon. Approx 20 miles. | E163: Nick Heasman on lead | F163: Alister Linton-Crook | H163: Y | J163: Transport | K163: Cycling | L163: 50000 | M163: CAP | N163: Hampshire County Council Countryside Service: Alison.perry@hants.gov.uk / petronella.nattrass@hants.gov.uk; 02392 592409 / 01962 845326 | Q163: HCC / NPA | R163: LSTF funds by Mar2015 Remainder by 2016 | S163: £50k HCC Capital £6k HCC 106; £50k LSTF; £18K EHDC 106
A164: Hampshire | C164: Bishops Waltham, Botley | D164: Complete Bishops Waltham to Botley footpath and cycleway/bridleway providing link between railway station and S Downs National Park hub at Bishops Waltham | E164: More info reqd. Unaware of this scheme | F164: Alister Linton-Crook | H164: Y | J164: Transport | K164: Cycling | L164: 0 | M164: WCC IDP; CAP; local need | N164: Hampshire County Council Countryside Service: Alison.perry@hants.gov.uk / petronella.nattrass@hants.gov.uk; 02392 592409 / 01962 845326 | Q164: Parish Councils | R164: by 2023 | S164: Funding from LSTF
A165: Hampshire | C165: Lavant Valley villages | D165: Community minibus for Lavant Valley (capital purchase of bus, not running costs) | E165: not sure if infrastructure | F165: Allison Thorpe | H165: Y | J165: Transport | K165: Public Transport | L165: 50000 | N165: Parish Rep | O165: 2013-04-01 | T165: =L165-S165 -> 50000
A166: Hamsey | B166: Lewes | C166: Cooksbridge station | D166: New footpath from Hamsey Cooksbridge Station (along A275)(2km) | F166: Tim Squire | H166: Y | J166: Transport | K166: Rights of Way | L166: 60000 | N166: SDNPA Eastern Downs Team (via Andy Beattie) | O166: 2013-08-01
A167: Hurstpierpoint | B167: MSDC | C167: To school | D167: Community/school minibus (capital purchase of bus, not running costs) | E167: Details of capital and/or revenue costs and project objectives | F167: Allison Thorpe | H167: Y | J167: Transport | K167: Public Transport | L167: 50000 | N167: Hurstpierpoint Parish Rep | O167: 2013-04-01 | T167: =L167-S167 -> 50000
A168: Kingston (East Sussex) | B168: Lewes | C168: A27 / Kingston Village | D168: Improved access to the bus stop on the A27 from the village, for use of Brighton & Hove Company bus services. | E168: Expanded service provision (revenue expenditure) is not likely to be supported as CIL funding is a single finite payment. | F168: Allison Thorpe | H168: Y | J168: Transport | K168: Public Transport | M168: Kingston Parish Action Plan 2007 and 2011 and the 2013 village questionnaire (results pending assessment). | N168: Kingston (ES) Parish Council | O168: 2013-06-01 | Q168: Parish Council?? Transport Company | R168: 2016 | S168: 0
A169: Kingston (East Sussex) | B169: Lewes | C169: Kingston village ‘through road’ between A27 and C7. | D169: New footpath Wellgreen Lane bus stop (east of the C7) to the Lewes Garden Centre (Swanborough Drove)(1km). | F169: Tim Squire | H169: Y | J169: Transport | K169: Rights of Way | L169: 30000 | M169: Current foot access to the Lewes Garden Centre from Kingston or by visitors arriving by bus is by walking on the C7 road where there is a 50 miles an hour speed limit. | N169: Kingston (ES) Parish Council | O169: 2013-06-01 | Q169: Parish Council?? Transport Company | R169: 2016 | S169: 0
A170: Lavant | B170: CDC | C170: Throughout village | D170: Maintenance of internal village roads - repair pot holes | E170: Not CIL - standard repairs | F170: Andy Beattie | H170: Y | J170: Transport | K170: Highway works | L170: 30000 | N170: Lavant Parish Rep | O170: 2013-04-01 | T170: =L170-S170 -> 30000
A171: Lewes | B171: Lewes | C171: On-street at Friars Walk | D171: Car Parking | E171: No detail | F171: Andy Beattie | H171: Y | J171: Transport | K171: Car Park | L171: 200000 | N171: Lewes Workshop Reps | O171: 2013-04-01 | T171: =L171-S171 -> 200000
A172: Lewes | B172: Lewes | C172: Newhaven; Piddinghoe; Southease; Rodmell; Iford; Kingston; Lewes to Ringmer along B2192 ("C7") | D172: Ouse Valley Cycle Network / Egrets Way / Lewes to Ringmer - Potential gap after March2015 1-Piidinghoe village section (Highways scheme) and 2-Pidinghoe to Newhaven section (~2km) | E172: £675k funding in place (Cycle Ambition) to deliver majority of route by March 2015. Potentially 2 missing sections 1- Piddinghoe Village (Highways scheme - £200k) 2- Piddinghoe to Newhaven (£200k) | F172: Alister Linton-Crook | H172: Y | J172: Transport | K172: Cycling | L172: 1075000 | M172: Sustrans Feasibility Study / Planning Application submitted March 2014, Committee July 2014 | N172: SDNPA Eastern Downs Team (via Andy Beattie); Rodmell Parish Council; Friends of Lewes Society | O172: 2013-08-01 | Q172: Ouse Valley Cycle Network / East Sussex County Council / Egrets Way Consortium | S172: 675000
A173: Lewes | B173: Lewes | C173: At or near existing bus station, Lewes. | D173: Refurbish Bus Station | E173: ESCC: Negotiations on current planning applications are considering delivering part of the existing service however this will not address all of the site or replace all of the current service. | F173: Allison Thorpe | H173: Y | J173: Transport | K173: Public Transport | L173: 100000 | M173: Existing bus station has poor facilities for visitors or those connecting journeys. | N173: Lewes Workshop Reps; Friends of Lewes Society | O173: 2013-04-01 | Q173: Rees Elliott | T173: =L173-S173 -> 100000
A174: Liss | B174: EHDC | D174: Community minibus (capital purchase of bus, not running costs) | E174: Details of capital and/or revenue costs and project objectives | F174: Allison Thorpe | H174: Y | J174: Transport | K174: Public Transport | L174: 25000 | M174: Liss Parish Council. Costs provided by parish council. | N174: Liss Parish Council | O174: 2013-08-01 | R174: by 2021
A175: Midhurst | B175: CDC | C175: Various | D175: Bus shelteres (x2) at North Street Interchange need improvement plus 3 new bus shelters (location TBC) | H175: Y | J175: Transport | K175: Public Transport | L175: =3*2450 -> 7350 | M175: Cost estimate from 2008. | N175: Midhurst Town Council via CDC | O175: 2014-06-01
A176: Peacehaven | B176: Lewes | C176: Peacehaven | D176: New cycle route from Peachaven 'Big Park' to link with South Downs NP. Surface upgrade of bridleways within site and upgrade RoW footpaths to shared-use / bridleway within site and beyond into NP to connect with Egrets Way and SDW (Alister L-C) | F176: Alister Linton-Crook | H176: Y | J176: Transport | K176: Cycling | L176: 60000 | M176: LSTF Project Board and ESCC | N176: SDNPA Strat Lead | O176: 2013-09-01 | Q176: ESCC
A177: Petersfield | B177: EHDC | C177: Train Station | D177: Improvements and provision of parking at Petersfield train station | E177: No detail | F177: Andy Beattie | H177: Y | J177: Transport | K177: Car Park | L177: 2000000 | M177: EHDC Joint Core Strategy IDP 2014 Policy CP29. Also East Hampshire & Winchester Transport Statements 2012 contain full details of projects and locations | N177: EHDC JCS. Hampshire County Council | O177: 2014-10-01 | Q177: HCC/Developer Funding | R177: 2022 | S177: none | T177: 2000000
A178: Petersfield | B178: EHDC | C178: Petersfield Town Centre | D178: Car parking improvements and traffic calming | E178: No detail | F178: Andy Beattie | H178: Y | J178: Transport | K178: Car Park | L178: 200000 | M178: Petersfield Neighbourhood Plan and EHDC JCS Policy CP29 | N178: Petersfield Town Council | O178: 2013-08-01 | Q178: EHDC | T178: =L178-S178 -> 200000
A179: Petersfield | B179: EHDC | C179: The Heath | D179: Heath access improvements (sensitive surface treatment, replace bollards with barrier/gate at Heath Road access). | H179: Y | J179: Transport | K179: Car Park | L179: 30000 | M179: Petersfield Neighbourhood Plan Group provided costings | N179: Petersfield Town Council | O179: 2014-08-01 | R179: 2015/16
A180: Petersfield | B180: EHDC | C180: The Heath | D180: Sussex Road Car Park improvements (resurfacing) | H180: Y | J180: Transport | K180: Car Park | L180: 30000 | M180: Petersfield Neighbourhood Plan Group provided costings | N180: Petersfield Town Council | O180: 2014-08-01 | R180: 2018/19
A181: Petersfield | B181: EHDC | C181: Bell Hill | D181: Improvements to car park surface | H181: Y | J181: Transport | K181: Car Park | L181: 30000 | M181: Petersfield Neighbourhood Plan Group provided costings | N181: Petersfield Town Council | O181: 2014-08-01 | R181: 2018/19
A182: Petworth | B182: CDC | C182: Within parish | D182: Community minibus hub | E182: more detail needed | F182: Allison Thorpe | H182: Y | J182: Transport | K182: Public Transport | L182: 50000 | M182: Draft Petworth Neighbourhood Plan Scoping Study. Cost: officer estimate based on small refurbished or shared building | N182: Petworth Parish Council | O182: 2013-06-01 | Q182: SDNPA | R182: 2015-2018 | S182: None
A183: Poynings | B183: MSDC | C183: Devil's Dyke | D183: Car Park Improvements / enhancements | E183: No detail | F183: Andy Beattie | H183: Y | J183: Transport | K183: Car Park | L183: 100000 | N183: National Trust; Jane.arnott@nationaltrust.org.uk; jane.cecil@nationaltrust.org.uk; National Trust - London and South East, Polesden Lacey, Dorking, Surrey, RH5 6BD, 01372 455008 | O183: 2013-07-01 | T183: =L183-S183 -> 100000
A184: Poynings | B184: MSDC | C184: Saddlescombe Farm, Devil's Dyke Estate | D184: Parking area improvements | E184: No detail | F184: Andy Beattie | H184: Y | J184: Transport | K184: Car Park | L184: 100000 | N184: National Trust; Jane.arnott@nationaltrust.org.uk; jane.cecil@nationaltrust.org.uk; National Trust - London and South East, Polesden Lacey, Dorking, Surrey, RH5 6BD, 01372 455008 | O184: 2013-07-01 | T184: =L184-S184 -> 100000
A185: Rogate | B185: EHDC | C185: Village Centre | D185: Additional car parking near village centre | E185: No detail | F185: Andy Beattie | H185: Y | J185: Transport | K185: Car Park | L185: 100000 | M185: 2007 Parish Plan. To facilitate village events. There is virtually no car parking in the centre of the village which is a great disadvantage to the shop and the church. There is reasonable car parking at the Village Hall. However, the main hall holds 100, the small hall 40, and there are also sporting events, and important events such as a well-attended funeral or wedding. There are therefore times when there is simply not enough car-parking. | N185: Rogate Parish | O185: 2013-07-01 | T185: =L185-S185 -> 100000
A186: Rottingdean | B186: Brighton Hove | C186: Several locations now being considered by BHCC and RPC inc Rottingdean, next to B&H lay-by | D186: Coach Parking space(s) to be provided to facilitate coach parties to visit attractions and businesses in Rottingdean village | E186: No detail | F186: Andy Beattie | H186: Y | J186: Transport | K186: Car Park | L186: 100000 | M186: Rottingdean Traders’ Association | N186: Rottingdean Parish (Ken Humpreys) | O186: 2013-09-01 | Q186: BHCC and RPC | S186: 0 | T186: =L186-S186 -> 100000
A187: Selborne | B187: EHDC | C187: Gilbert White Estate | D187: Village Car Park | G187: y | I187: y | J187: Transport | K187: Car Park | L187: 100000 | N187: Area Ranger on behalf GW Estate | O187: 2015-02-01
A188: Selborne | B188: EHDC | C188: Selborne & Blackmoor. | D188: Additional car parking | E188: No detail | F188: Andy Beattie | H188: Y | J188: Transport | K188: Car Park | L188: 100000 | M188: Selborne car park often overflowing due to visitors. Blackmoor parking limited. There have been discussions in the past about extending the existing main car park in Selborne. Same goes for the one at the Recreation ground (that is easier as the land is already owned by SPC). Blackmoor would be dependent upon land in private ownership. | N188: Selborne Parish Council | O188: 2013-06-01 | Q188: East Hants DC & Hampshire CC | T188: =L188-S188 -> 100000
A189: Selborne | B189: EHDC | C189: BOAT 66 and 67 | D189: Refurbish BOATS (Byway open to all traffic) | F189: Tim Squire | H189: Y | J189: Transport | K189: Rights of Way | L189: 50000 | M189: BOATS have become heavily damaged by 4x4’s, walkers and riders are put at risk | N189: Selborne Parish Council | O189: 2013-06-01 | Q189: Hampshire County Council | T189: =L189-S189 -> 50000
A190: Storrington and Sullington | B190: Horsham | C190: Chantry Lane, Greyfriars Lane and Kithurst Lane | D190: Re-surface car parks | E190: No detail | F190: Andy Beattie | H190: Y | J190: Transport | K190: Car Park | L190: 100000 | M190: Undertaking NP process - more evidence in due course | N190: Storrington and Sullington Parish Rep | O190: 2013-04-01 | Q190: County Council | T190: =L190-S190 -> 100000
A191: Storrington and Sullington | B191: Horsham | C191: Thakeham School to Storrington School | D191: New cycle routes linking schools – Thakeham to Storrington (4km) | E191: More info reqd. Unaware of this scheme | F191: Alister Linton-Crook | H191: Y | J191: Transport | K191: Cycling | L191: =4*80000 -> 320000 | M191: Undertaking NP process - more evidence in due course | N191: Storrington and Sullington Parish Rep | O191: 2013-04-01 | T191: =L191-S191 -> 320000
A192: Storrington and Sullington | B192: Horsham | C192: Kithurst Lane to Chantry Lane (via Greyfriers Lane) | D192: New cycle route, Kithurst Lane to Chantry Lane (via Greyfriers Lane) (1.5km) | E192: More info reqd. Unaware of this scheme | F192: Alister Linton-Crook | H192: Y | J192: Transport | K192: Cycling | L192: 80000 | M192: Undertaking NP process - more evidence in due course | N192: Storrington and Sullington Parish Rep | O192: 2013-04-01 | T192: =L192-S192 -> 80000
A193: Strategic Cycle Network | C193: Drovers Estate, Singlton | D193: Extension to Centurion Way (cycle route) | F193: Alister Linton-Crook | J193: Transport | K193: Cycling | L193: 7000000 | M193: Likely total cost in range £7-10million including 3 tunnels at £1.5m each. Subject to many variables so intention is to break the project down into sectopms to be prioritised and worked on / funded separately | N193: Alister Linton-Crook | O193: 2013-07-01
A194: Twyford | B194: EHDC | C194: Linking Twyford to Hockley Viaduct via Footpath 10 (or 12) , Church Lane and B3335 | D194: Strategic cycle route | E194: David Deane on lead | F194: Alister Linton-Crook | H194: Y | J194: Transport | K194: Cycling | L194: 250000 | M194: Demand for cycling for commuters and leisure users. No route from Botley through villages including Twyford to Winchester. Increased demand by Local Plan Part II housing targets | N194: Twyford Parish | O194: 2013-06-01 | Q194: HCC/WCC | S194: None | T194: =L194-S194 -> 
A195: Twyford | B195: EHDC | C195: Near junction of Bourne Lane | D195: Crossing on the B3335 at Northfields | F195: Tim Squire | H195: Y | J195: Transport | K195: Rights of Way | L195: 200000 | M195: Safety; level of traffic | N195: Twyford Parish | O195: 2013-06-01 | Q195: Hants County Council | R195: 2012 | S195: Partly
A196: Twyford | B196: EHDC | C196: Outside Phoenix Inn | D196: Puffin crossing | E196: highway project AB lead | F196: Tim Squire | H196: Y | J196: Transport | K196: Rights of Way | L196: 200000 | M196: Speed / volume of traffic. Difficulty in crossing the road on the B3335 at this point | N196: Twyford Parish | O196: 2013-06-01 | Q196: HCC
A197: Twyford | B197: EHDC | C197: General | D197: General Footpaths on roads (Widen and review dropped kerbs for mobility scooters access) | F197: Tim Squire | H197: Y | J197: Transport | K197: Rights of Way | L197: 50000 | M197: No Continuous footpath down the B3335 other areas of the village require better access for the disabled to ensure access to shop/ surgery/school/public transport/leisure facilities | N197: Twyford Parish | O197: 2013-06-01 | Q197: HCC | S197: None | T197: =L197-S197 -> 
A198: Upper Beeding | B198: Horsham | C198: South Downs Way crossing at A283 (Steyning Road) | D198: Create designated crossing waiting areas, signage and surfaced path on verge. Possible central island. | E198: consult Andy Gattiker | F198: Tim Squire | H198: Y | J198: Transport | K198: Rights of Way | L198: 75000 | M198: Improvements identified by WSCC and SDW officer. Several near misses documented. Existing crossing of the very busy of A283 is poorly designed. There is currently no speicific crossing point. | N198: Andy Gattiker (SDNPA SDW Officer) | O198: 2015-10-01 | P198: Y | Q198: WSCC | R198: 2018 | S198: 25000 | T198: =L198-S198 -> 50000 | U198: Policy 28-30 and SDW Management Plan Policy 8
A199: Washington | B199: Horsham | C199: The Bostal, Washington. South Downs Way to village | D199: Millennium footpath | F199: Tim Squire | H199: Y | J199: Transport | K199: Rights of Way | L199: 75000 | M199: Parish Plan 2004. Currently the only route is a narrow, winding road, with a speed limit of 60mph, which is concerning for equestrians and those with young children. | N199: Washington Parish | O199: 2013-05-01 | R199: 2015 | S199: 5000
A200: Winchester | B200: WCC | C200: Winchester | D200: Cycle routes, pedestrian crossings and other road safety measures (Upham, Itchen Abbas, West Meon and Twyford) | E200: Worth further investigation | F200: Andy Beattie | H200: Y | J200: Transport | K200: Highway works | L200: 412000 | M200: East Hampshire & Winchester Transport Statements 2012 contain full details of projects and locations | N200: Hampshire County Council | O200: 2013-02-01 | Q200: HCC/Developer Funding | R200: 2017 | S200: 9000 | T200: 403000
... 45 more rows

Sheet Parish Level <£20k
A1: Parish / Area | B1: District | C1: Exact Location | D1: Infrastructure Project | E1: Category | F1: Sub-Category | G1: Project Cost | H1: Evidence | I1: Submitted by: | J1: Submit Date | K1: In SDNP? | L1: Delivered by | M1: Delivery timescale | N1: Existing Secured funding | O1: Funding Gap | P1: PMP Theme | Q1: SDNPA Lead | R1: Local Plan Policies | S1: CIL Eligible? | T1: SCF Eligible? | U1: MPF Eligible? | V1: Other Eligible? | W1: Status | X1: Priority | Y1: Officer Group Validation | Z1: Parish Council Validation | AA1: CIL Approved
A2: Bramber | B2: Horsham | C2: Bramber Church | D2: Public toilet for the church | E2: Facilities Services | F2: Community use | G2: 19000 | H2: Cost is for a renovation in existing building including plumbing etc. Other toilet costs found include. Automated toilet unit £45,000, Block with four units and baby changing £170k | I2: Bramber Parish Rep | J2: 2013-04-01 | L2: 2016 | O2: =G2-N2 -> 19000
A3: Bramber | B3: Horsham | C3: River Adur | D3: Flood management | E3: Green | F3: Flood management | G3: 3000 | I3: Bramber Parish Rep | J3: 2013-04-01 | O3: =G3-N3 -> 3000 | Q3: RCD
A4: Brighton Area | B4: Brighton Hove | C4: Brighton & Hove (Outside of SDNP). East of Patcham Recreation Ground and allotments | D4: Upgrade footpath link to bridleway | E4: Transport | F4: Rights of Way | G4: 20000 | H4: Cost estimate for resurfacing right of way and additional signage. | I4: Friends of the Earth (Chris Todd)
A5: Brighton Area | B5: Brighton Hove | C5: Brighton & Hove (Outside of SDNP). Top of Carden Avenue | D5: Improve bridleway access | E5: Transport | F5: Rights of Way | G5: 15000 | I5: Friends of the Earth (Chris Todd)
A6: Buriton | B6: EHDC | C6: All community buildings | D6: Upgrade external lighting (improve efficiency; reduce light pollution) | E6: Facilities Services | F6: Community building | G6: 15000 | H6: Parish Plan. £4500-£4800 for basic upgrade to EE lighting for a village hall 15m x 6m with high vaulted ceiling | I6: Buriton Parish Council | J6: 2013-08-01 | M6: 2018
A7: Buriton | B7: EHDC | C7: Recreation Ground | D7: Natural Play area | E7: Social & Leisure | F7: Play space | G7: 20000 | H7: Parish Plan. £130,000 per Hectare mix play area (natural and equipment) | I7: Buriton Parish Council | J7: 2013-08-01 | M7: 2018
A8: Buriton | B8: EHDC | C8: Childrens' Playground | D8: Refurbish playground inc. carved log features | E8: Social & Leisure | F8: Play space | G8: 20000 | H8: Parish Plan | I8: Buriton Parish Council | J8: 2013-08-01 | M8: 2016
A9: Buriton | B9: EHDC | C9: Recreation Ground | D9: Green Gym for adults | E9: Social & Leisure | F9: Sports centres, equipment | G9: 16900 | H9: Parish Plan. £16,900 (BTCV est cost) | I9: Buriton Parish Council | J9: 2013-08-01 | M9: 2020
A10: Buriton | B10: EHDC | D10: New public cricket practice facilities | E10: Social & Leisure | F10: Sports centres, equipment | G10: 11000 | H10: Parish Plan. £11,000 Greenbow sports | I10: Buriton Parish Council | J10: 2013-08-01 | M10: 2020
A11: Buriton | B11: EHDC | C11: Near Sheepwash or Village Pond | D11: Community Art or Sculptures reflecting local history | E11: Social & Leisure | F11: Public realm improvement | G11: 10000 | H11: Parish Plan | I11: Buriton Parish Council | J11: 2013-08-01
A12: Buriton | B12: EHDC | D12: Enhancements to the childrens' bicycle/skate ramps | E12: Social & Leisure | F12: Sports centres, equipment | G12: 10000 | H12: Parish Plan | I12: Buriton Parish Council | J12: 2013-08-01 | M12: 2015
A13: Buriton | B13: EHDC | C13: Heritage feature in heart of village | D13: Further enhancements to the old sheepwash | E13: Social & Leisure | F13: Cultural heritage | G13: 5000 | H13: Parish Plan. People Places Lead cost estimate | I13: Buriton Parish Council | J13: 2013-08-01
A14: Buriton | B14: EHDC | C14: Recreation Ground | D14: More seats on Recreation Ground | E14: Social & Leisure | F14: Sports centres, equipment | G14: 5000 | H14: Parish Plan | I14: Buriton Parish Council | J14: 2013-08-01
A15: Buriton | B15: EHDC | C15: Glebe Road area | D15: New Community Noticeboard | E15: Social & Leisure | F15: Public realm improvement | G15: 250 | H15: Parish Plan | I15: Buriton Parish Council | J15: 2013-08-01
A16: Bury | B16: EHDC | D16: Sports and recreation facilities (not including building). | E16: Social & Leisure | F16: Sports centres, equipment | G16: 20000 | I16: Bury Parish Rep | J16: 2013-04-01 | O16: =G16-N16 -> 20000
A17: Colden Common | B17: WCC | C17: Colden Common Centre | D17: Refurbish Tennis Courts and Play Area | E17: Social & Leisure | F17: Sports centres, equipment | G17: 20000 | I17: Colden Common Parish Rep | J17: 2013-04-01 | O17: =G17-N17 -> 20000
A18: Corhampton & Meonstoke | B18: WCC | C18: St Andrews Green, Meonstoke | D18: Provision of new allotments (£5k) & metered water supply (£15k) | E18: Green | F18: Community Use G.I. | G18: 20000 | H18: Parish Plan | I18: Parish Council - Nick Riley, chair@candm-pc.gov.uk; 01489 877958 | J18: 2013-06-01 | L18: Winchester City Council | M18: 2014 Q3 | N18: 0
A19: Corhampton & Meonstoke | B19: WCC | C19: Meonstoke Recreation Ground | D19: Renew artificial cricket wicket | E19: Social & Leisure | F19: Sports centres, equipment | G19: 10000 | H19: Parish Plan / 7 year plan | I19: Parish Council - Nick Riley, chair@candm-pc.gov.uk; 01489 877951 | J19: 2013-06-01 | L19: Parish Council | M19: 2015 Q1 | N19: 0
A20: Corhampton & Meonstoke | B20: WCC | C20: Meonstoke Recreation Ground | D20: Maintaining and/or replacing MUGA perimeter fencing | E20: Social & Leisure | F20: Sports centres, equipment | G20: 4750 | H20: Parish Plan / 10 year plan | I20: Parish Council - Nick Riley, chair@candm-pc.gov.uk; 01489 877949 | J20: 2013-06-01 | L20: Parish Council | M20: 2014 Q1 | N20: 0
A21: Corhampton & Meonstoke | B21: WCC | C21: Chapel Lane, Meonstoke | D21: Remove & replace children’s swings | E21: Social & Leisure | F21: Sports centres, equipment | G21: 4000 | H21: Parish Plan. £500 removal; £3,500 replacement. | I21: Parish Council - Nick Riley, chair@candm-pc.gov.uk; 01489 877956 | J21: 2013-06-01 | L21: Parish Council | M21: 2013 Q3 | N21: 0
A22: Corhampton & Meonstoke | B22: WCC | C22: Meonstoke Recreation Ground | D22: Refurbish or replacing adult exercise equipment. | E22: Social & Leisure | F22: Sports centres, equipment | G22: =350*10 -> 3500 | H22: Parish Plan suggest annual ongoing cost of £350. Capitalised for CIL purposes. | I22: Parish Council - Nick Riley, chair@candm-pc.gov.uk; 01489 877950 | J22: 2013-06-01 | L22: Parish Council | M22: Annually | N22: 0
A23: Corhampton & Meonstoke | B23: WCC | C23: Meonstoke Recreation Ground | D23: Provision of an adult and children’s zip-wire | E23: Social & Leisure | F23: Sports centres, equipment | G23: 2500 | H23: Parish Plan | I23: Parish Council - Nick Riley, chair@candm-pc.gov.uk; 01489 877954 | J23: 2013-06-01 | L23: Parish Council | M23: 2014 Q3 | N23: 0
A24: Corhampton & Meonstoke | B24: WCC | C24: The Meon Hall, Meonstoke | D24: Renew sports showers in changing rooms | E24: Social & Leisure | F24: Sports centres, equipment | G24: 2500 | H24: Meon Hall Management committee plan / 5 year plan | I24: Parish Council - Nick Riley, chair@candm-pc.gov.uk; 01489 877952 | J24: 2013-06-01 | L24: Parish Council | M24: 2014 Q1 | N24: 0
A25: Corhampton & Meonstoke | B25: WCC | C25: Meonstoke Recreation Ground | D25: Maintaining MUGA Playing surface. | E25: Social & Leisure | F25: Sports centres, equipment | G25: 1400 | H25: Parish Annual budget / 5 year plan. | I25: Parish Council - Nick Riley, chair@candm-pc.gov.uk; 01489 877948 | J25: 2013-06-01 | L25: Parish Council | M25: 2014 Q2 | N25: 0
A26: Corhampton & Meonstoke | B26: WCC | C26: Meonstoke Recreation Ground | D26: Redecoration of MUGA Games wall and games storage shed. | E26: Social & Leisure | F26: Sports centres, equipment | G26: 1200 | H26: Parish Annual budget / 5 year plan. | I26: Parish Council - Nick Riley, chair@candm-pc.gov.uk; 01489 877947 | J26: 2013-06-01 | L26: Parish Council | M26: 2017 Q2 | N26: 0
A27: Corhampton & Meonstoke | B27: WCC | C27: Bucks Head Hill, Meonstoke | D27: Introduction of a new village “Gateway” welcome statement into the village | E27: Social & Leisure | F27: Public realm improvement | G27: 1000 | H27: Parish Plan | I27: Parish Council - Nick Riley, chair@candm-pc.gov.uk; 01489 877955 | J27: 2013-06-01 | L27: Hampshire County Council | M27: 2013 Q3 | N27: 0
A28: Corhampton & Meonstoke | B28: WCC | C28: Village green of Stocks Lane & Corhampton Valley Stores | D28: Replace Parish Notice / display boards | E28: Social & Leisure | F28: Public realm improvement | G28: 1000 | H28: Parish Plan | I28: Parish Council - Nick Riley, chair@candm-pc.gov.uk; 01489 877953 | J28: 2013-06-01 | L28: Parish Council | M28: 2014 Q3 | N28: 0
A29: Corhampton & Meonstoke | B29: WCC | C29: Meon Hall, Meonstoke | D29: Renew line markings to Badminton Court | E29: Social & Leisure | F29: Sports centres, equipment | G29: 500 | H29: Parish Plan | I29: Parish Council - Nick Riley, chair@candm-pc.gov.uk; 01489 877961 | J29: 2013-06-01 | L29: Parish Council | M29: 2014 Q1 | N29: 0
A30: Corhampton & Meonstoke | B30: WCC | C30: At junction of A32 Alton Road and Bucks Head Hill. | D30: Refurbish / maintain village bus shelter | E30: Transport | F30: Public Transport | G30: 2500 | H30: Parish Plan / 5 year | I30: Parish Council - Nick Riley, chair@candm-pc.gov.uk; 01489 877957 | J30: 2013-06-01 | L30: Parish Council | M30: 2015 Q1 | N30: LSTF??
A31: Ditchling | B31: Lewes | C31: Ditchling Recreation Ground | D31: Recreational facilities, especially for young people | E31: Social & Leisure | F31: Sports centres, equipment | G31: 20000 | I31: Ditchling Society | J31: 2013-08-01 | L31: Parish Council | N31: Parish Council applied to Sports England | O31: =G31-N31 -> 
A32: Ditchling | B32: Lewes | C32: Between Hustpierpoint and Hassocks | D32: Improve footpath between Hustpierpoint and Hassocks for safe use by schoolchildren. | E32: Transport | F32: Rights of Way | G32: 15000 | H32: Empirical observation | I32: Ditchling Society | J32: 2013-08-01 | L32: ESCC/WSCC jointly | N32: 0 | O32: =G32-N32 -> 15000
A33: East Dean & Friston | B33: Wealden | C33: Village Hall, Gilberts Drive, East Dean | D33: Provision of public toilets | E33: Facilities Services | F33: Community use | G33: 19000 | H33: Parish Council Village Action Plan. The Parish has no public toilets and since the creation of the South Downs National Park the footfall within the area has increased significantly with visitors. Consideration has been given to locating public facilities at either the Pavilion (above) and/or adjacent to the Village Hall. With a single facility the latter is the preferred option owing to the central location. The provision of Public Toilets is another strategic objective on the Parish Council’s Village Action Plan. | I33: Parish Council | J33: 2013-06-01 | L33: Parish Council | M33: 2014 | N33: 0
A34: East Dean & Friston | B34: Wealden | C34: East Dean | D34: New Campsites / Camping Barns | E34: Green | F34: Community Use G.I. | G34: 15000 | H34: Parish Plan and lack of existing facilities | I34: The Gilbert Estate, The Estate Office, The Green, East Dean, East Sussex, BN20 0BY, Charlie@beachyhead.org.uk, 01323 423 906 | J34: 2013-06-01 | L34: Gilbert Estate / SDNPA | M34: 2015-16 | N34: ?
A35: East Dean & Friston | B35: Wealden | C35: Crowlink | D35: Re-roofing of the Red Roofed Barn | E35: Social & Leisure | F35: Cultural heritage | G35: 20000 | H35: The cost depends on how much of the structure needs replacing to support a slate roof – so anything from £17 - 34 K. It isn’t a listed building but it is very visible particularly from the South Downs Way | I35: National Trust; Jane Cecil General Manager - South Downs The National Trust Estate Office Top Road Slindon West Sussex BN18 0RG Mobile: 07900 608206 Desk: 01243 814554 | J35: 2013-07-01
A36: East Dean & Friston | B36: Wealden | C36: Recreation Ground, Gilberts Drive, East Dean | D36: Refurbishment of Pavilion | E36: Social & Leisure | F36: Sports centres, equipment | G36: 5000 | H36: Parish Council Village Action Plan. The Pavilion is an old wooden structure used on a regular basis (primarily during the summer months) by the cricket team and other organisations or groups. Although it benefits from an annual maintenance programme, it now needs a significant refurbishment including attention to the electrical wiring, an upgrade to the shower and toilet facilities, replacement of several external wall panels, and overall treatment to the external structure. The Pavilion refurbishment is currently on the Parish Council’s Village Action Plan as one of its key strategic objectives. £5000 contribution towards full building works | I36: Parish Council | J36: 2013-06-01 | L36: Parish Council | M36: 2014 | N36: 0
A37: East Dean & Friston | B37: Wealden | C37: East Dean village | D37: New information boards | E37: Social & Leisure | F37: Public realm improvement | G37: 1500 | I37: East Dean Parish Rep | J37: 2013-03-01
A38: East Meon | B38: WCC | C38: Village Centre | D38: Refurbish Village Hall exterior | E38: Facilities Services | F38: Village Hall | G38: 20000 | H38: Cost estimate assumes replacement roof and minor external works | I38: East Meon Parish Rep | J38: 2013-04-01 | O38: =G38-N38 -> 20000
A39: Fernhurst | B39: CDC | C39: ??? | D39: Public toilets provision | E39: Facilities Services | F39: Community use | G39: 19000 | H39: Neighbourhood Plan | I39: Fernhurst Parish Rep | J39: 2013-04-01 | O39: =G39-N39 -> 19000
A40: Fernhurst | B40: CDC | C40: Parish-wide | D40: Public benches | E40: Social & Leisure | F40: Public realm improvement | G40: 5000 | H40: Neighbourhood Plan | I40: Fernhurst Parish Rep | J40: 2013-04-01 | O40: =G40-N40 -> 5000
A41: Graffam | B41: CDC | C41: Graffam Recreation Ground | D41: Recreation Ground improvements: Area Around self-closing gate – reinstate eroded area; Timber and rail fencing: rotten timber; broken rail; loose posts; Seats perishing on 2 seat cradle swings; Chain openings need replacing; Rubber tiles under cradle swings repair. | E41: Social & Leisure | F41: Sports centres, equipment | G41: 1000 | H41: Annual Inspection Fields in Trust (NPFA) The Play Inspection Company | I41: Graffham Parish | J41: 2013-08-01 | N41: 0
A42: Hambledon | B42: EHDC | C42: Village Hall, West Street | D42: Village Hall - Upkeep/improvement of village hall grounds and play area for community use | E42: Facilities Services | F42: Village Hall | G42: =2000*10 -> 20000 | H42: Village Hall Trust. Proponent states £2,000/year running cost. Capitalised for CIL purposes. | I42: Hambledon Parish | J42: 2013-07-01 | L42: Village Hall Trust, Parish Council | M42: ongoing | N42: PC precept
A43: Hambledon | B43: EHDC | C43: Church car park | D43: Car parking at the church for visitors/school/tennis - To be expanded/enhanced/surfaced to cope with additional pressures from tourist visits /school expansion | E43: Facilities Services | F43: Car Park | G43: 3000 | H43: Parish Plan, Tourism, School Plans | I43: Hambledon Parish | J43: 2013-07-01 | L43: Parochial Church Council, Parish Council, County Council | M43: 2013 | N43: 0
A44: Hambledon | B44: EHDC | C44: Village Centre | D44: Village green and overflow parking | E44: Green | F44: Community Use G.I. | G44: 10000 | H44: £300,000 plot purchase + £10,000 build cost. Parish Plan, Annual Parish Meeting. car park for amenities and visitors, and to cope with impossible current village parking situation Village green for games, events and displays (not sports) | I44: Hambledon Parish | J44: 2013-07-01 | L44: Parsih Council | M44: 2015 | N44: 0
A45: Hambledon | B45: EHDC | C45: Village-wide | D45: Commission "Shared Space" (public realm) – consultancy and feasibility study | E45: Social & Leisure | F45: Public realm improvement | G45: 20000 | H45: Parish Plan, Annual Parish Meeting, Flood Plan | I45: Hambledon Parish | J45: 2013-07-01 | L45: Ben Hamilton-Bailie (TBC) | M45: 2013/14 | N45: £2,000 parish reserves
A46: Hambledon | B46: EHDC | C46: Village-wide | D46: Heritage signs - Replace modern retro-reflective direction signs and road names with traditional alternatives | E46: Social & Leisure | F46: Public realm improvement | G46: 15000 | H46: Annual Parish Meeting, VDS in preparation | I46: Hambledon Parish | J46: 2013-07-01 | L46: Parish Council, County Council | M46: 2014 | N46: 0
A47: Hambledon | B47: EHDC | C47: Hambledon Cricket Club, Brook Lane | D47: Cricket club/school football pitch - Football pitch to be added to Hambledon Cricket Club for school/community use | E47: Social & Leisure | F47: Sports centres, equipment | G47: 15000 | H47: School Plans, Cricket Club Plans | I47: Hambledon Parish | J47: 2013-07-01 | L47: Cricket Club, County Council | M47: 2014/15 | N47: 0
A48: Hambledon | B48: EHDC | C48: Village Hall & Stewarts Green | D48: Maintain/improve village play equipment | E48: Social & Leisure | F48: Play space | G48: 1200 | H48: Parish Plan | I48: Hambledon Parish | J48: 2013-07-01 | L48: Parsih Council | M48: ongoing | N48: PC precept
A49: Hambledon | B49: EHDC | C49: West Street | D49: Replace damaged bus shelter with more appropriate vernacular (brick and flint, tiled roof) | E49: Transport | F49: Public Transport | G49: 20000 | H49: VDS in preparation | I49: Hambledon Parish | J49: 2013-07-01 | L49: Parsih Council | M49: 2015 | N49: 0
A50: Hambledon | B50: EHDC | C50: Around the village, and adjacent Church and School | D50: Footpath improvement - Hard surfacing and vegetation removal. In particular to aid school walking bus | E50: Transport | F50: Rights of Way | G50: =750*10 -> 7500 | H50: Parish Plan, School Plans, Annual Parish Meeting. Proponent suggests ongoing cost of £750/year. Capitalised for CIL purposes. | I50: Hambledon Parish | J50: 2013-07-01 | L50: Parish Council, County Council | M50: 2013/14 | N50: £250/year PC precept
A51: Lewes | B51: Lewes | C51: Town-wide | D51: Signposting to attractions | E51: Education | F51: Interpretation | G51: 10000 | I51: Lewes Workshop Reps | J51: 2013-04-01 | O51: =G51-N51 -> 10000
A52: Lewes | B52: Lewes | C52: Town-wide | D52: Promote Heritage Trail | E52: Education | F52: Interpretation | G52: 5000 | H52: Lewes District Public Realm Framework (2013). Cost: officer estimate based on similar project. Interpretation panels, maps, finger posts etc. | I52: SDNPA - Rural Economy Lead | J52: 2013-08-01
A53: Lewes | B53: Lewes | C53: Linklater Pavilion, Railway Lane, Lewes | D53: Environmental Change Community Centre improvement to lighting and maintenance of outside. Includes £2000 LED exhibition display lighting system for Undercroft. | E53: Facilities Services | F53: Community use | G53: 20000 | H53: RLWT Strategic Plan | I53: Railway Land Wildlife Trust (RLWT) | J53: 2014-11-01 | K53: Y | L53: Railway Land Wildlife Trust (RLWT) | M53: pre-2017
A54: Lewes | B54: Lewes | C54: Across Lewes, inc Landport and Brooks Road areas. | D54: Tree planting | E54: Green | F54: Biodiversity project | G54: 20000 | H54: Society's Tree Survey | I54: Friends of Lewes Society | J54: 2013-06-01 | L54: Friends of Lewes Society and others | N54: Friends of Lewes Society to bid for funding
A55: Lewes | B55: Lewes | C55: River-side, Lewes | D55: Fittleworth Mill Fish Passage Easement (added by Chris Manning, from Environment Agency WFD nursery list therefore needs confirmation). | E55: Green | F55: Biodiversity project | G55: 10000 | H55: South East River Basin Management Plan, WFD | I55: CM has included this on behalf of EA. NB, CM has developed a synergy between IDP and EA Integrated Environment Programme (IEP) to ensure up-to-date list potnetial associated projects. | Q55: CM
A56: Lewes | B56: Lewes | C56: Winterbourne River | D56: Improve existing open space (Winterbourne River) | E56: Social & Leisure | F56: Cultural heritage | G56: 20000 | H56: Lewes District Public Realm Framework (2013) | I56: SDNPA - Rural Economy Lead | J56: 2013-08-01
A57: Lewes | B57: Lewes | C57: Thomas A Becket Church | D57: Improve existing open space (Thomas A Becket Church) | E57: Social & Leisure | F57: Cultural heritage | G57: 20000 | H57: Lewes District Public Realm Framework (2013) | I57: SDNPA - Rural Economy Lead | J57: 2013-08-01
A58: Lewes | B58: Lewes | C58: Cliffe Precint | D58: Improve existing open space (Cliffe Precint) | E58: Social & Leisure | F58: Cultural heritage | G58: 20000 | H58: Lewes District Public Realm Framework (2013) | I58: SDNPA - Rural Economy Lead | J58: 2013-08-01
A59: Lewes | B59: Lewes | C59: Castle land viewing areas and Battle of Lewes | D59: Improve existing open space (Castle land viewing areas and Battle of Lewes) | E59: Social & Leisure | F59: Cultural heritage | G59: 20000 | H59: Lewes District Public Realm Framework (2013) | I59: SDNPA - Rural Economy Lead | J59: 2013-08-01
A60: Liss | B60: EHDC | C60: Village Hall | D60: Village Hall: Biomass Boiler | E60: Facilities Services | F60: Energy Efficiency Improvements | G60: 20000 | H60: Liss Parish Council | I60: Liss Parish Council | J60: 2013-08-01 | M60: by 2018 | Q60: RCD
A61: Liss | B61: EHDC | C61: Liss Community Centre | D61: Improve Liss Community Centre | E61: Facilities Services | F61: Community building | G61: 10000 | H61: Community Group submission | I61: Liss Parish Council | J61: 2013-08-01 | M61: by 2018
A62: Liss | B62: EHDC | C62: Village Hall | D62: Village Hall: Solar Panels | E62: Facilities Services | F62: Energy Efficiency Improvements | G62: 5000 | H62: Liss Parish Council | I62: Liss Parish Council | J62: 2013-08-01 | M62: by 2018 | Q62: RCD
A63: Liss | B63: EHDC | C63: Village Hall | D63: Village Hall: Loft Insulation | E63: Facilities Services | F63: Energy Efficiency Improvements | G63: 3000 | H63: Liss Parish Council | I63: Liss Parish Council | J63: 2013-08-01 | M63: by 2018 | Q63: RCD
A64: Liss | B64: EHDC | C64: Riverside Railway Walk | D64: Tree care at Riverside Railway Walk | E64: Green | F64: Biodiversity project | G64: 10000 | H64: Parish Plan | I64: Liss Parish Council | J64: 2013-08-01 | M64: by 2018
A65: Liss | B65: EHDC | C65: Riverside Railway Walk | D65: Improvements to Riverside Railway Walk | E65: Green | F65: Access land | G65: 5000 | H65: Parish Plan | I65: Liss Parish Council | J65: 2013-08-01 | M65: by 2018
A66: Liss | B66: EHDC | D66: Sports: Artificial Cricket Surface | E66: Social & Leisure | F66: Sports centres, equipment | G66: 20000 | I66: Liss Parish Council | J66: 2013-08-01 | M66: by 2018
A67: Liss | B67: EHDC | D67: Sports: Bowling Green | E67: Social & Leisure | F67: Sports centres, equipment | G67: 20000 | I67: Liss Parish Council | J67: 2013-08-01 | M67: by 2021
A68: Liss | B68: EHDC | C68: West Liss Recreation Ground | D68: Sports: Basket ball court | E68: Social & Leisure | F68: Sports centres, equipment | G68: 15000 | I68: Liss Parish Council | J68: 2013-08-01 | M68: by 2018
A69: Liss | B69: EHDC | D69: Sports: Outdoor Exercise / gym equipment | E69: Social & Leisure | F69: Sports centres, equipment | G69: 10000 | I69: Liss Parish Council | J69: 2013-08-01 | M69: by 2018
A70: Liss | B70: EHDC | C70: Newman Collard Pavilion | D70: Extension to Newman Collard Pavilion | E70: Social & Leisure | F70: Sports centres, equipment | G70: 5000 | H70: Community Group submission | I70: Liss Parish Council | J70: 2013-08-01 | M70: by 2018
A71: Liss | B71: EHDC | C71: Liss Station | D71: Bench and planting: Liss Station | E71: Social & Leisure | F71: Public realm improvement | G71: 1000 | H71: Parish Plan | I71: Liss Parish Council | J71: 2013-08-01 | M71: by 2018 | O71: LSTF - possible £15k funding for liss station improvements
A72: Liss | B72: EHDC | C72: West Liss Pavilion | D72: Sports: Indoor Bowling Mat | E72: Social & Leisure | F72: Sports centres, equipment | G72: 1000 | I72: Liss Parish Council | J72: 2013-08-01 | M72: by 2018
A73: Liss | B73: EHDC | C73: Shipwrights Way to the A3 and Parish-wide | D73: Improve village cycle network | E73: Transport | F73: Cycling | G73: 10000 | H73: Parish Plan | I73: Liss Parish Council | J73: 2013-08-01 | M73: by 2018
A74: Liss | B74: EHDC | C74: Village Centre | D74: Traffic / parking control | E74: Transport | F74: Highway works | G74: 5000 | H74: Parish Plan | I74: Liss Parish Council | J74: 2013-08-01 | M74: by 2018
A75: Liss | B75: EHDC | C75: Lower Mead | D75: Bus shelter | E75: Transport | F75: Public Transport | G75: 4000 | H75: Parish Plan | I75: Liss Parish Council | J75: 2013-08-01 | M75: by 2018
A76: Peacehaven | B76: Lewes | C76: Town-wide | D76: National Cycle Network signage/interpretation & promotion of local cycle network | E76: Education | F76: Interpretation | G76: 5000 | H76: Lewes District Public Realm Framework (2013) | I76: SDNPA - Rural Economy Lead | J76: 2013-08-01
A77: Peacehaven | B77: Lewes | C77: Meridian Line | D77: Interpretation of Meridian Line | E77: Education | F77: Interpretation | G77: 5000 | H77: Lewes District Public Realm Framework (2013). Cost: officer estimate based on similar project. Interpretation panels, maps, finger posts etc. | I77: SDNPA - Rural Economy Lead | J77: 2013-08-01
A78: Petersfield | B78: EHDC | C78: Paddock Way | D78: Drainage for Paddock Way Recreation Ground | E78: Social & Leisure | F78: Sports centres, equipment | G78: 15000 | H78: Petersfield Neighbourhood Plan Group provided costings | I78: Petersfield Town Council | J78: 2014-08-01 | M78: 2015/16
A79: Petersfield | B79: EHDC | C79: Bell Hill | D79: Refurbish fencing to Childrens Play Area | E79: Social & Leisure | F79: Play space | G79: 5000 | H79: Petersfield Neighbourhood Plan Group provided costings | I79: Petersfield Town Council | J79: 2014-08-01 | M79: 2015/16
A80: Petersfield | B80: EHDC | C80: The Heath | D80: Heath access improvements (series of waymarked walks around the Heath, taking in points of interest (inc. Tumuli) and connecting with the footpath network leaading out of town). | E80: Transport | F80: Rights of Way | G80: 10000 | H80: Petersfield Neighbourhood Plan Group provided costings | I80: Petersfield Town Council | J80: 2014-08-01 | M80: 2016/17
A81: Petersfield | B81: EHDC | C81: Borough Road | D81: Rrefurbish footpath at Borough Road Recreation Ground | E81: Transport | F81: Rights of Way | G81: 5000 | H81: Petersfield Neighbourhood Plan Group provided costings | I81: Petersfield Town Council | J81: 2014-08-01 | M81: 2016/17
A82: Poynings | B82: MSDC | C82: Saddlescombe Farm, Devil's Dyke Estate | D82: Education Room provision for school groups | E82: Education | F82: Interpretation | G82: 20000 | H82: Cost: officer estimate based on similar project. | I82: National Trust; Jane.arnott@nationaltrust.org.uk; jane.cecil@nationaltrust.org.uk; National Trust - London and South East, Polesden Lacey, Dorking, Surrey, RH5 6BD, 01372 455008 | J82: 2013-07-01
A83: Poynings | B83: MSDC | C83: Devil's Dyke | D83: Toilet Improvements | E83: Facilities Services | F83: Community use | G83: 19000 | I83: National Trust; Jane.arnott@nationaltrust.org.uk; jane.cecil@nationaltrust.org.uk; National Trust - London and South East, Polesden Lacey, Dorking, Surrey, RH5 6BD, 01372 455008 | J83: 2013-07-01
A84: Pycombe | B84: MSDC | C84: A273 (Clayton Hill) / South Downs Way crossing | D84: Upgrade South Downs Way crossings | E84: Transport | F84: Rights of Way | G84: 12000 | H84: Will require works to highways/ | J84: Friends of the Earth (Chris Todd) | L84: 2013-07-01
A85: Rodmell | B85: Lewes | C85: Northease | D85: Bus Shelter | E85: Transport | F85: Public Transport | G85: 3000 | H85: Request from residents | I85: Rodmell Parish Rep | J85: 2013-04-01 | L85: East Sussex County Council / Rodmell PC | M85: ? | N85: None | O85: =G85-N85 -> 
A86: Rogate | B86: EHDC | C86: Habin Hill to Garbitts Wood | D86: Steps from Habin Hill to Garbitts Wood, to access Woodland Classroom | E86: Green | F86: Access land | G86: 20000 | H86: RPC April 2011 | I86: Rogate Parish | J86: 2013-07-01
A87: Rogate | B87: EHDC | D87: Refurbish Oliver’s Piece for community benefit (Rake Village) | E87: Green | F87: Community Use G.I. | G87: 20000 | H87: RPC Jan 2012 | I87: Rogate Parish | J87: 2013-07-01
A88: Rogate | B88: EHDC | C88: Village Hall Recreation Ground | D88: Practice cricket net & all-weather tennis court. | E88: Social & Leisure | F88: Sports centres, equipment | G88: 20000 | H88: (July 2012) | I88: Rogate Parish | J88: 2013-07-01
A89: Rottingdean | B89: Brighton Hove | C89: Beacon Hill Local Nature Reserve | D89: Signage & additional information boards | E89: Education | F89: Interpretation | G89: 5000 | H89: LNR Working Group. Cost: officer estimate based on similar project. Interpretation panels, maps, finger posts etc. | I89: Rottingdean Clerk (James Simister) | J89: 2013-09-01 | L89: BHLNR WG, RPC and BHCC | N89: 0
A90: Rottingdean | B90: Brighton Hove | C90: Access via north-west corner of The Green | D90: Improve footpath surface between Hogg Platt and the Recreation Ground | E90: Transport | F90: Rights of Way | G90: 15000 | H90: Rangers and volunteers | I90: Rottingdean Clerk (James Simister) | J90: 2013-09-01 | L90: Beacon Hill LNR Working Group, RPC and BHCC | N90: Limited RPC funds secured
A91: Rottingdean | B91: Brighton Hove | C91: Access via the Recreation Ground off Falmer Road or from Beacon Hill Local Nature Reserve | D91: Improve footpath surface & siding between the Recreation Ground and Beacon Hill: in particular the angled bridleway path through North Wood | E91: Transport | F91: Rights of Way | G91: 15000 | H91: Beacon Hill Local Nature Reserve Working Group | I91: Rottingdean Clerk (James Simister) | J91: 2013-09-01 | L91: Beacon Hill Local Nature Reserve Working Group (BHLNR WG), RPC and BHCC | N91: Limited RPC funds may be available for further works
A92: Rottingdean | B92: Brighton Hove | C92: Whiteway Lane and near the ruins of Old Balsdean Farm and towards Castle Hill | D92: Refurbish bridleway gate (including latches and fittings). | E92: Transport | F92: Rights of Way | G92: 500 | H92: Ranger, and Rights of Way team at BHCC | I92: Rottingdean Clerk (James Simister) | J92: 2013-09-01 | L92: Beacon Hill Local Nature Reserve Working Group, RPC and BHCC | N92: Limited RPC finds may be available for repair works
A93: Seaford | B93: Lewes | C93: Town-wide | D93: Interpretation for SDNP in the town | E93: Education | F93: Interpretation | G93: 5000 | H93: Lewes District Public Realm Framework (2013). Cost: officer estimate based on similar project. Interpretation panels, maps, finger posts etc. | I93: SDNPA - Rural Economy Lead | J93: 2013-08-01
A94: Slindon | B94: Arun | C94: Slindon Village | D94: Stane Street Management and Interpretation | E94: Education | F94: Interpretation | G94: 5000 | H94: Consultants Report. Cost: officer estimate based on similar project. Interpretation panels, maps, finger posts etc. | I94: National Trust; Jane.arnott@nationaltrust.org.uk; jane.cecil@nationaltrust.org.uk; National Trust - London and South East, Polesden Lacey, Dorking, Surrey, RH5 6BD, 01372 455008 | J94: 2013-07-01
A95: Steep | B95: EHDC | C95: Village Hall | D95: Outside Play area for Jubilee Day Nursery, inc. safety flooring and a "sail" shelter. | E95: Social & Leisure | F95: Play space | G95: 5000 | H95: OFSTED Requirements | I95: Steep Parish Rep | J95: 2013-04-01 | L95: Trustees of Steep Village Hall | M95: 2014 | N95: 750 | O95: =G95-N95 -> 4250
A96: Storrington and Sullington | B96: Horsham | C96: Storrington High Street | D96: Signpost & interpretation boards | E96: Education | F96: Interpretation | G96: 5000 | H96: Undertaking NP process - more evidence in due course. Cost: officer estimate based on similar project. Interpretation panels, maps, finger posts etc. | I96: Storrington and Sullington Parish Rep | J96: 2013-04-01 | O96: =G96-N96 -> 5000
A97: Storrington and Sullington | B97: Horsham | C97: Storrington Playground | D97: Refurbish playgrounds | E97: Social & Leisure | F97: Play space | G97: 20000 | H97: Undertaking NP process - more evidence in due course | I97: Storrington and Sullington Parish Rep | J97: 2013-04-01 | O97: =G97-N97 -> 20000
A98: Storrington and Sullington | B98: Horsham | C98: Sullington Playground | D98: Refurbish playgrounds | E98: Social & Leisure | F98: Play space | G98: 20000 | H98: Undertaking NP process - more evidence in due course | I98: Storrington and Sullington Parish Rep | J98: 2013-04-01 | O98: =G98-N98 -> 20000
A99: Telscombe | B99: Lewes | C99: Town-wide | D99: Interpretation for SDNP in the town | E99: Education | F99: Interpretation | G99: 5000 | H99: Lewes District Public Realm Framework (2013). Cost: officer estimate based on similar project. Interpretation panels, maps, finger posts etc. | I99: SDNPA - Rural Economy Lead | J99: 2013-08-01
A100: Telscombe | B100: Lewes | C100: Telscombe Tye | D100: Improve signage and local access points to Telscombe Tye | E100: Transport | F100: Rights of Way | G100: 20000 | H100: Lewes District Public Realm Framework (2013) | I100: SDNPA - Rural Economy Lead | J100: 2013-08-01
A101: Twyford | B101: EHDC | C101: Itchen Navigation / Twyford Meads Water Meadow | D101: Itchen navigation. Restoration of the Twyford Meads Water meadow ditches | E101: Green | F101: Biodiversity project | G101: 20000 | H101: Damaged caused to ditch infrastructure by high water levels from the Navigation last year. Repairs to the ditch system. | I101: Twyford Parish | J101: 2013-06-01 | L101: Twyford Parish Council | O101: =G101-N101 -> 20000
A102: Twyford | B102: EHDC | C102: Norris Bridge, Finches Lane/Shawford Road | D102: Pedestrian safety measures | E102: Transport | F102: Highway works | G102: 20000 | H102: Safety – no pavements, fast traffic no priority system | I102: Twyford Parish | J102: 2013-06-01 | L102: HCC | N102: None | O102: =G102-N102 -> 
A103: Twyford | B103: EHDC | C103: PRoW 10/12 | D103: Footpaths 10 and 12 (widen and resurface) | E103: Transport | F103: Rights of Way | G103: 20000 | H103: Only Safe route up and down the village, overgrown, hedges encroaching, needs widening and re-surfacing. | I103: Twyford Parish | J103: 2013-06-01 | L103: HCC | N103: Partly | O103: =G103-N103 -> 
A104: Twyford | B104: EHDC | C104: Shipley Road/Northfields Junction | D104: Improvement of Shipley Road/Northfields Junction | E104: Transport | F104: Highway works | G104: 5000 | H104: Danger – no clear right of way | I104: Twyford Parish | J104: 2013-06-01 | L104: Hants County Council | M104: 2012 | N104: 0
A105: Washington | B105: Horsham | C105: The Recreation Ground, Washington | D105: Provision of adult outdoor gym equipment. | E105: Social & Leisure | F105: Sports centres, equipment | G105: 15000 | H105: Parish Minutes. Washington PC would like to provide outdoor adult gym facilities. Currently there is nothing similar in the area. Adults could exercise and socialise within the village. Providing free facilities for senior citizens during the day and younger adult users during evenings and weekends. Similar outdoor gyms have proved popular with residents in other parishes. | I105: Washington Parish | J105: 2013-05-01 | M105: 2018 | N105: 3000
A106: Washington | B106: Horsham | C106: The Street, Washington | D106: Improvements to bridleway #2697 to increase safety to horse and rider travelling over the bridge and provide a mounting point on either side. | E106: Transport | F106: Rights of Way | G106: 5000 | H106: Parish Minutes. Currently, the bridge in question crosses the A24 and has very low railings on either side. Equestrians are in danger of being thrown over the side of the bridge, should their horse take fright. Currently riders have to dismount and lead the horse over. They have asked if the railings could be raised to ensure safety for all users or alternatively, could a mounting block be placed on either side, for those who choose to dismount. | I106: Washington Parish | J106: 2013-05-01 | M106: 2015 | N106: 0
A107: West Meon | B107: WCC | C107: Meon Warren | D107: Playground equipment (8-14yo) | E107: Social & Leisure | F107: Sports centres, equipment | G107: 20000 | I107: West Meon Parish Rep | J107: 2013-04-01 | O107: =G107-N107 -> 20000
A108: Winchester | B108: WCC | C108: St Catherine's Hill (Southern Water land, Winchester) | D108: Installation of a grazing water supply to enable livestock to be taken off the publicly accessible nature reserve and onto layback green infrastructure at busy / sensitive times of year including lambing period. | E108: Green | F108: Community Use G.I. | G108: 5000 | H108: Capital to Revenue: 1 to 0 | I108: David.Rumble@hiwwt.org.uk Hampshire & Isle of Wight Wildlife Trust | J108: 2014-10-01 | M108: 2017 | P108: People Places; Living Landscapes; Sustainable Futures
A109: Winchester | B109: WCC | C109: Winchester | D109: Improve cycle path from Winchester Station to South Downs Way (2km) | E109: Transport | F109: Cycling | G109: 15000 | I109: SDNPA Strat Lead | J109: Spet-13 | L109: HCC, SDNPA
A110: Wiston | B110: Horsham | C110: Spithandle Lane Buncton Xroads Village Shop Hole St / North Lane junction | D110: Flood Management Measures | E110: Green | F110: Flood management | G110: 20000 | H110: Village Plan. In June 2012 and during every winter, Wiston residents experience flooding to properties. WSCC and the landowner, Wiston Estate, have undertaken much work to clear ditches, and drains and also create holding areas for surface water. Further measures to assist the flow of water under the bridge in Spithandle Lane would help protect local properties from flooding. | I110: Wiston Parish Council | J110: 2013-06-01 | L110: WSCC and Wiston Estate (landowner) | M110: 2015 | N110: Grant requested from WSCC Operation Watershed | Q110: RCD
A111: Wiston | B111: Horsham | C111: Main Road | D111: Traffic calming sign / measures. | E111: Transport | F111: Highway works | G111: 10000 | H111: The greatest concern of residents is the volume and speed of traffic using the village as a cut through. There is a width and speed restriction in place, but this does nothing to calm the traffic. Councillors have considered many options for dealing with the problem including increased signage, ‘gates’ to give a perception of reduced road width, chevrons to give pedestrians a safe area to walk in or any other option permitted by WSCC. | L111: WSCC | M111: 2015
A112: Woolbeding | B112: CDC | C112: Woolbeding and Pound Commons | D112: Education Room provision | E112: Education | F112: Interpretation | G112: 20000 | H112: Cost: officer estimate based on similar project. | I112: National Trust; Jane.arnott@nationaltrust.org.uk; jane.cecil@nationaltrust.org.uk; National Trust - London and South East, Polesden Lacey, Dorking, Surrey, RH5 6BD, 01372 455008 | J112: 2013-07-01
A113: Worldham | B113: EHDC | C113: East Worldham Village Hall | D113: Village Hall maintenance (eg Painting, gutter-clearing) | E113: Facilities Services | F113: Village Hall | G113: =500*10 -> 5000 | H113: Parish Plan. Proponent suggests ongoing cost of £500/year. Capitalised for CIL purposes. | I113: Worldham Parish Rep | J113: 2013-05-01 | L113: Worldham Parish Council | M113: Annually
A114: Worldham | B114: EHDC | C114: Church Lane, East Worldham | D114: Upgrade Playground Phase 2 | E114: Social & Leisure | F114: Play space | G114: 20000 | H114: Parish Plan | I114: Worldham Parish Rep | J114: 2013-04-01 | L114: Worldham Parish Council | O114: =G114-N114 -> 20000
A115: Worldham | B115: EHDC | C115: B3004 at East Worldham Village Hall and end of Church Lane, East Worldham | D115: Notice boards | E115: Social & Leisure | F115: Public realm improvement | G115: 2000 | H115: Parish Plan | I115: Worldham Parish Rep | J115: 2013-04-01 | L115: Worldham Parish Council | M115: 2013/14 | O115: =G115-N115 -> 2000
G116: =SUM(G2:G115) -> 1287700

Sheet Strategic or Generic Projects
A1: Parish / Area | B1: District | C1: Exact Location | D1: Infrastructure Project | E1: Comments on project | F1: Lead Officer | G1: Category | H1: Sub-Category | I1: Project Cost | J1: Evidence | K1: Submitted by: | L1: Submit Date | M1: In SDNP? | N1: Delivered by | O1: Delivery timescale | P1: Existing Secured funding | Q1: Funding Gap | R1: SDNPA Lead | S1: Local Plan Policies | T1: CIL Eligible? | U1: SCF Eligible? | V1: MPF Eligible? | W1: Other Eligible? | X1: Status | Y1: Priority | Z1: Officer Group Validation | AA1: Parish Council Validation | AB1: CIL Approved
A2: Sustainable Economic Growth
A3: Natural Capital
A4: Access for All | D4: Non-motorised and Access for Priority Group)
A5: Education and Interpretation
A6: Strategic Floodplain Management | D6: (eg Assistant Ranger Project?)/adaptability to Climate Change) Ray leading
A7: Newhaven | C7: Town-wide | D7: Enhance gateways to SDNP | E7: GG - don't think this was looked at by Head of Team | F7: Stephen Sibbald | G7: Education | H7: Interpretation | J7: Lewes District Public Realm Framework (2013) | K7: SDNPA - Rural Economy Lead | L7: 2013-08-01
A8: Park-wide | D8: Signage and interpretation at rail stations | E8: GG - don't think this was looked at by Head of Team | F8: Stephen Sibbald | G8: Education | H8: Interpretation | I8: 50000 | J8: Specific Project | K8: Transport Study | L8: SDNPA Strat Lead | N8: 2013-09-01 | Q8: some
A9: Shoreham Cement Works | B9: Horsham | C9: A283 / Shoreham Cement Works | D9: Supporting infrastructure for redevelopment of strategic site
A10: Peacehaven | C10: Key locations within town | D10: Enhance gateways to SDNP | E10: GG - don't think this was looked at by Head of Team | F10: Stephen Sibbald | G10: Education | H10: Interpretation | J10: Lewes District Public Realm Framework (2013) | K10: SDNPA - Rural Economy Lead | L10: 2013-08-01
A11: Park-wide | D11: Enhanced visitor facilities including information and interpretation | E11: GG - don't think this was looked at by Head of Team | F11: NH/Ruth James | G11: Education | H11: Visitor Information | J11: Generic | L11: South Downs Society; steve.ankers@southdownssociety.org.uk; 01798 875077 | N11: 2013-08-01
A12: Lewes | C12: At access points to the countryside at Mill Road, Southerham, Juggs Road, Hope-in-the-Valley, Spital Road and Nevill Road. | D12: Provide small car parks at access points to the South Downs. | E12: No detail | F12: Andy Beattie | G12: Facilities Services | H12: Car Park | I12: 100000 | J12: Visitors are deterred from visiting the Downs around Lewes by lack of car parks and signing at main access points. | K12: Friends of Lewes Society | L12: 2013-04-01 | N12: ESCC, SDNPA and LDC/LTC in relation to Landport Bottom. | Q12: =I12-P12 -> 100000
A13: Park-wide | C13: Midhurst, Petworth, Lewes | D13: Police Infrastructure: Proportion of costs, arising from needs in SDNP, towards Division based accommodation provided in new Midhurst and Petworth police stations; adapted Lewes police station; and provision of neighbourhood satellite offices (Dependant on growth scale and location, but estimated cost based on delivery of 250 units a year) | G13: Facilities Services | H13: Community Services | I13: 221247 | J13: Submission: To provide Neighbourhood, Response and Division based policing to address increase in incidents/crimes generated by development. £27, 416 (cost of accommodation per officer/ staff member) x 8.07 (those staff required as solely dedicated to division) = £ 221, 247 | K13: Sussex Police | L13: 2014-07-01 | M13: Yes | N13: Sussex Police | O13: Over Plan Period, Lewes Police Station later.
A14: Sussex County | C14: Sussex County | D14: Police Infrastructure: Proportion of costs, arising from needs in SDNP, towards Central and Shared accommodation provided through the adaptation and extension of central shared sites (e.g. Headquarters, Communication Centres, specialist county wide teams on Division) (Dependant on growth scale and location, but estimated cost based on delivery of 250 units a year) | G14: Facilities Services | H14: Community Services | I14: 251678 | J14: Submission: To provide county wide and specialist policing to support new development and address increase in incidents/crimes generated by development. £27, 416 (per officer/ staff member) x 9.18 (shared staff) = £251, 678 | K14: Sussex Police | L14: 2014-07-01 | M14: Yes | N14: Sussex Police | O14: Over Plan Period
A15: Sussex County | C15: Sussex County | D15: Police Infrastructure: Provision of fleet vehicles (marked and unmarked cars, vans, and units for Road Policing) for use by new/increased number of officers (Dependant on growth scale and location, but estimated cost based on delivery of 250 units a year) | G15: Facilities Services | H15: Community Services | I15: 39590 | J15: Submission: To address increase in incidents/crimes that require increased patrols and on site responses and visit by police officers. £3995 (cost of fleet per officer) x 9.91 (number of new officers) = £ 39, 590 | K15: Sussex Police | L15: 2014-07-01 | M15: Yes | N15: Sussex Police | O15: Over Plan Period
A16: Sussex County | C16: Sussex County | D16: Police Infrastructure: Provision of fleet bicycles (fully equipped and including some provision of battery assisted bicycles for outlying rural areas) for use by new/increased number of officers (Dependant on growth scale and location, but estimated cost based on delivery of 250 units a year) | G16: Facilities Services | H16: Community Services | I16: 1982 | J16: Submission: To address increase in incidents/crimes that require increased patrols and on site responses and visit by police officers. £200 (cost of bike fleet per officer) x 9.91 (number of new officers) = £ 1982 | K16: Sussex Police | L16: 2014-07-01 | M16: Yes | N16: Sussex Police | O16: Over Plan Period
A17: Sussex County | C17: Sussex County | D17: Police Infrastructure: Specialist equipment for each officer (e.g. body worn camera, radio/telecoms, specialist safety/detection equipment and training) (Dependant on growth scale and location, but estimated cost based on delivery of 250 units a year) | G17: Facilities Services | H17: Community Services | I17: 125966 | J17: Submission: To provide police officers and Police Community Support Officers with the necessary facilities and equipment to address the increase in incidents/crimes generated by development. £12, 711 (cost per officer) x 9.91 (number of new officers) = £125, 966 | K17: Sussex Police | L17: 2014-07-01 | M17: Yes | N17: Sussex Police | O17: Over Plan Period
A18: Sussex County | C18: Sussex County | D18: Police Infrastructure: Information Technology Equipment for each police officer, including equipment for on site use, enabling greater visibility (Dependant on growth scale and location, but estimated cost based on delivery of 250 units a year) | G18: Facilities Services | H18: Community Services | I18: 19820 | J18: Submission: To provide police officers and Police Community Support Officers with the necessary equipment to address the increase in incidents/crimes generated by development. £2000 (cost of equipment per officer) x 9.91 (number of new officers) = £19, 820 | K18: Sussex Police | L18: 2014-07-01 | M18: Yes | N18: Sussex Police | O18: Over Plan Period
A19: Sussex County | C19: Sussex County | D19: Police Infrastructure: Information Technology Equipment for each police staff member, providing support to officers (Dependant on growth scale and location, but estimated cost based on delivery of 250 units a year) | G19: Facilities Services | H19: Community Services | I19: 7340 | J19: Submission: To provide police staff members with the necessary equipment to support officers in dealing with increased incidents/crimes generated by development. £1000 (cost of equipment per staff member) x 7.34 (number of new staff) = £7340 | K19: Sussex Police | L19: 2014-07-01 | M19: Yes | N19: Sussex Police | O19: Over Plan Period
A20: Sussex County | C20: Sussex County | D20: Police Infrastructure: ANPR Cameras x 6 (camera, installation and connect to network) – to be located with regard to the delivery of development, especially across rural isolated areas (Dependant on growth scale and location, but estimated cost based on delivery of 250 units a year) | G20: Facilities Services | H20: Community Services | I20: 66000 | J20: Submission: To accommodate growth in population and subsequent growth in crime, particularly useful in investigation and detection of more serious crime types and crime in rural and isolated areas. Cameras to be located with regard to main access routes through the SDNP | K20: Sussex Police | L20: 2014-07-01 | M20: Yes | N20: Sussex Police | O20: Over Plan Period
A21: Sussex County | C21: Sussex County | D21: Police Infrastructure: Proportion of costs towards enhanced custody provision, required as a result of new development (Dependant on growth scale and location, but estimated cost based on delivery of 250 units a year) | G21: Facilities Services | H21: Community Services | I21: 87500 | J21: Submission: To provide increased county wide custody provision, with the proportion based on development coming forward in the SDNP. Current 4 sqm of custody floor space per 1000 population = need for additional 35sqm due to 8783 population generated by NP by new development = 35 x £2500 (cost of custody per sqm) = £87, 500 | K21: Sussex Police | L21: 2014-07-01 | M21: Yes | N21: Sussex Police | O21: Over Plan Period
A22: Park-wide | D22: Improve green infrastructure, inc disabled access | G22: Green | H22: ??? | J22: Generic | L22: South Downs Society; steve.ankers@southdownssociety.org.uk; 01798 875075 | N22: 2013-08-01
A23: Park-wide | D23: SANG Mitigation - sites and costs needed (related to development locations) | G23: Green | H23: Biodiversity project | J23: Generic | K23: Related to applications | L23: CIL Project Manager | N23: 2014-01-01 | O23: SDNPA | P23: As required
A24: ??? | C24: ??? | D24: A possible strategic SUDS retrofitting pilot project in flood-prone towns/villages | E24: Insufficient information | F24: Ray Drabble | G24: Green | H24: Flood management | J24: Generic | L24: Natural England. John Lister Lead Adviser, Land Use Services Team - Ashford John.Lister@naturalengland.org.uk | N24: 2013-07-01 | R24: RCD
A25: Downland Area | C25: Throughout Downland Area | D25: Additional "Access Land" designations under CROW Act 2000 | G25: Green | H25: Open space | J25: Deficit of provision. http://www.southdowns.gov.uk/__data/assets/pdf_file/0006/344049/Agenda-Item-14-Appendix-1.pdf | K25: The Camping and Caravanning Club | L25: 2013-07-01
A26: Park-wide | D26: Strategic Floodplain Management Project | G26: Green | H26: Flood management | I26: ? | J26: Specific Project | K26: Trevor Beattie / Assistant Rangers | L26: 2015-08-01
A27: Along or near SDW | D27: Establishment of campsites for Cyclists and Backpackers | G27: Social & Leisure | H27: ??? | J27: Specific Project | K27: Unmet need. | L27: The Camping and Caravanning Club | N27: 2013-07-01
A28: Park-wide | D28: Promote Tourism (inc. B&Bs) | G28: Social & Leisure | H28: ??? | J28: Generic | L28: Angmering Parish Rep | N28: 2013-04-01 | O28: Community Land Trust
A29: Park-wide | D29: Cultural Heritage conservation and enhancement | E29: Pete C advised per annum £40,000 | F29: Pete Currell | G29: Social & Leisure | H29: Cultural heritage | I29: 40000/pa | J29: Cultural Heritage Audit; English Heritage submission. | L29: English Heritage | N29: 2013-07-01 | O29: SDNPA | P29: ongoing
A30: Park-wide | D30: Rescue of buildings on the English Heritage/Historic England "At Risk Register" | G30: Social & Leisure | H30: Cultural heritage | I30: x | J30: Buildings At Risk Register | K30: Wiggonholt Association | L30: 2015-10-01 | M30: Yes | N30: SDNPA/English Heritage / Property Owners
A31: Park-wide | D31: Visual mitigation of key eyesores (removal, screening) | G31: Social & Leisure | H31: Public realm improvement | J31: Generic | L31: South Downs Society; steve.ankers@southdownssociety.org.uk; 01798 875079 | N31: 2013-08-01
A32: Park-wide | D32: Retrofitting of lighting (not LA or HA streetlights) | F32: Pete Currell | G32: Social & Leisure | H32: Public realm improvement | J32: Generic | K32: Dark Skies | L32: SDNPA Dan Oakly | N32: 2013-08-01
A33: Park-wide | D33: Signing of key entrances to the Park on major transport routes | F33: Pete Currell | G33: Social & Leisure | H33: Public realm improvement | J33: Generic | L33: South Downs Society; steve.ankers@southdownssociety.org.uk; 01798 875078 | N33: 2013-08-01
A34: Park-wide | D34: Public Realm enhancements, particularly in market towns | F34: Pete Currell | G34: Social & Leisure | H34: Public realm improvement | J34: Generic | L34: South Downs Society; steve.ankers@southdownssociety.org.uk; 01798 875076 | N34: 2013-08-01
A35: Park-wide | D35: Developing Parish Lighting Management Plans | E35: Pete C advised per annum £10,000 | F35: Pete Currell | G35: Social & Leisure | H35: Public realm improvement | I35: 10000/pa | J35: Generic | K35: Dark Skies | L35: SDNPA Andy Beattie | N35: 2013-08-01 | V35: possible
A36: East | C36: Lewes to Uckfield rail line; Route of former 1858 railway from Hamsey to Uckfield. | D36: Reinstating the Lewes to Uckfield rail link | E36: Suggest this is removed- not suitable for CIL, will need millions of Central Gov funding and unlikley to come forward in next 10 years as scheme will depend on improvements at East Grinstead first. | F36: Allison Thorpe | G36: Transport | H36: Public Transport | I36: Being worked up in Network Rail study | J36: Need for additional railway line from Sussex to London due to overcrowding on Brighton mainline. | K36: Friends of Lewes Society | L36: 2013-04-01 | N36: Network Rail
A37: Park-wide | D37: Improve accessibility (limited mobility) to SDNP, inc by car | F37: Allison Thorpe | G37: Transport | H37: Public Transport | J37: Generic | L37: Angmering Parish Rep | N37: 2013-04-01
A38: Park-wide | D38: Bus Network; trunk route extentions from coastal towns and Wealden towns; National Park-specific bus stop design and features promoting protecting park purposes | F38: Allison Thorpe | G38: Transport | H38: Public Transport | I38: unknown | J38: Specific Project | L38: SDNPA; Pete Currel (Strategy Leads) | N38: 41487 | O38: Joint Working with all included Local Authorities | P38: 7 years before self-funding | Q38: contributions from joint working Local Authorities
A39: Park-wide | D39: Bus real time info | E39: would need further investigation as to how this would work. Could see it working in villages if access to electricity available but visual impacts need to be considered. Alternative would be mobile phone updates from bus stops but dependent on coverage. Suggest Feasibility study. | F39: Allison Thorpe | G39: Transport | H39: Public Transport | J39: Generic | L39: Friends of the Earth (Chris Todd) | N39: 2013-04-01
A40: Park-wide | D40: Improve pedestrian and cycling accessibility into SDNP | F40: Tim Squire | G40: Transport | H40: Rights of Way | J40: Generic | K40: Lewes District Public Realm Framework (2013) | L40: South Downs Society; steve.ankers@southdownssociety.org.uk; 01798 875073; Angmering Parish Rep; Petworth Parish Council; SDNPA Rural Economy Lead; | N40: 2013-04-01
A41: Park-wide | D41: Signage for walking & cycling | F41: Tim Squire | G41: Transport | H41: Rights of Way | I41: 50000 | J41: Generic | K41: Transport Study | L41: SDNPA Strat Lead | N41: 2013-09-01 | Q41: some
A42: East Dean & Friston | C42: Parish-wide | D42: Improve mobile phone reception | E42: this is infrastructure; but not a defined project; group mobile phone reception together and treat as park-wide project at this stage; there is a national project led by Harlequin & Arquiva to address areas of poor reception; provisionally 4 areas identified in NP - Angie check areas with Nat who leads for NPA (Angie) | F42: Angie Blowman | G42: Utilities | H42: Telecommunications | J42: Owing to this area’s geographical position the mobile telecoms reception is very poor. There is limited signal from some service providers and zero signal coverage from most. The village has suffered from main-line telecoms failure in the past which fully demonstrated the unsatisfactory service levels of mobile services. It is appreciated that there are several initiatives in the south east area focusing on enhanced broadband, and it suggested that mobile reception be linked to these initiatives to help improve the mobile service coverage, not only to East Dean, but to all similar locations in the south east. | K42: Parish Council | L42: 2013-06-01 | N42: Service Provider(s)
A43: Graffam | C43: Parish-wide | D43: Improve mobile phone reception | E43: As above | F43: Angie Blowman | G43: Utilities | H43: Telecommunications
A44: Hambledon | C44: Village and surroundings | D44: Improve mobile phone reception | E44: As above | F44: Angie Blowman | G44: Utilities | H44: Telecommunications | J44: Parish Plan | K44: Hambledon Parish | L44: 2013-07-01 | N44: Mobile operators | O44: 2014 | P44: 0
A45: Hambledon | C45: Village centre | D45: Community Satellite Dish | E45: As above | F45: Angie Blowman | G45: Utilities | H45: Telecommunications | J45: Parish Plan | K45: Hambledon Parish | L45: 2013-07-01 | N45: Parish Council, Satellite Operators | O45: 2015 | P45: 0
A46: Park-wide | D46: Broadband | E46: this is infrastructure; but not a defined project; treat as park-wide project at this stage; national superfast programme being rolled out led by BT and Counties but will not reach all areas of NP; alternative solutions and funding sources under discussion. (Angie) | F46: Angie Blowman | G46: Utilities | H46: Telecommunications | J46: Generic | L46: Rogate, Hambledon, Rowlands Castle, Selborne, Droxford, Graffam, Corhampton & Meon Stoke, Kingston (East Sussex), Worldham Parish Councils | N46: 2013-04-01 | O46: 2017 is government target to achieve 95% superfast broadband coverage | P46: Hampshire: £13.8m for phase 1 90% coverage (mix of Counties, districts, BT and DCMS funding) + £20.6m for phase 2 95% coverage (mix of County and DCMS funding); West Sussex £20m for phase 1 (mix of County, BT & DCMS) and £2.5m for phase 2 (mix of County and DCMS); East Sussex £35.44m for phase 1 (mix of County, BT and DCMS) | Q46: Unknown at this stage. There will be a funding gap as the national programme will not cover all premises in the National Park, especially those in rural areas. The premises that will not be covered have still to be made fully clear by the Counties - Hampshire provisional estimate c30,000 and West Sussex 18,000.
A47: Catchment area basis | D47: Strategic Water resources infrastructure. | E47: This is a 'catch all' related to all water supply/resources and wastewater infrastructure. Full detail on all 2015-2020 water company infrastructure will be made available when the water company Asset Management Plans are approved by Ofwat in December 2014. Therefore, the list of proposed water company infrastructure schemes listed in this IDP is not comprehensive (5/6/14). All such schemes should be 100% funded through the water company Asset Management Plan (AMP) process. However, there may be legitimate opportunities for additional CIL funding to increase the scope of such capital works to deliver SDNP benefits - e.g. the restoration of a receiving watercourse associated with a wastewater treatment work upgrade; the landscape screening of wastewater treatment works with native tree planting; the grassing of a covered storage reservoir etc. (Chris Manning) | F47: Angie Blowman | G47: Utilities | H47: Utility supply | I47: To be identified through the Price Review Process | J47: Generic | K47: Ofwat’s price review, Southern Water’s Business Plan and Water Resources Management. Investment requirements will need to be determined taking all new development into account. | L47: Southern Water; Planning.policy@southernwater.co.uk; Clare Gibbons, Development Manager, Regional Planning, Asset Management; 01273 663143 | N47: 2013-07-01 | O47: Southern Water | P47: As required | Q47: OFWAT / AMP Process
A48: Park-wide | D48: Local water mains to connect new development to the distribution network at the nearest point of adequate capacity. | E48: This scheme should be 100% funded through the water company Asset Management Plan (AMP) process. However, there may be a legitimate opportunity for additional CIL funding to increase the scope of such capital works to deliver SDNP benefits. (Chris Manning) | F48: Angie Blowman | G48: Utilities | H48: Utility supply | I48: Needs to be funded by the development. Southern Water will take future income from customers into account. | J48: Generic | K48: Precise requirements will need to be investigated when the development comes forward. Developer to contact provider - Southern Water – to undertake capacity assessment. | L48: Southern Water; Planning.policy@southernwater.co.uk; Clare Gibbons, Development Manager, Regional Planning, Asset Management; 01273 663143 | N48: 2013-07-01 | O48: Developer/Southern Water | P48: As per development | Q48: 0
A49: Park-wide | C49: C2C LEP Area | D49: Coast to Capital LEP Strategic Economic Plan projects | G49: Transport | H49: Highway Works | J49: http://www.coast2capital.org.uk/strategic-objectives/strategic-economic-plan#sthash.iL5ymDBW.JYyL3R16.dpbs | L49: 2014-10-01 | N49: Ron Crank C2C LEP
A50: South East Water catchment area | D50: Peacehaven water re-use scheme, which comprises a transfer pipeline from Southern Water's Peacehaven Wastewater Treatment Works to Newhaven Wastewater Treatment Works, where a new tertiary treatment plant would be installed, and a further pipeline transferring the treated effluent inland for release into the River Ouse. The plan proposes that this this would be in place by 2025. As this incorporates wastewater development this could be a County Matter – an issue that will require discussion with yourselves, Lewes District and East Sussex County Council. | E50: This scheme should be 100% funded through the water company Asset Management Plan (AMP) process. Full detail on all 2015-2020 water company infrastructure will be made available when the water company Asset Management Plans are approved by Ofwat in December 2014. Therefore, the list of proposed water company infrastructure schemes listed in this IDP is not comprehensive (5/6/14). However, there may be a legitimate opportunity for additional CIL funding to increase the scope of such capital works to deliver SDNP benefits. (Chris Manning) | F50: Angie Blowman | G50: Utilities | H50: Utility supply | J50: South East Water draft Water Resources Management Plan | K50: South East Water | L50: 2013-06-01 | N50: SEW | O50: 2025 | Q50: 0
A51: Park-wide | D51: Woodland Bats project bid to LIFE+ | E51: Emily Brennan leading - to send me more info | G51: Green | H51: Biodiversity project
A52: Park-wide | D52: Improve recycling facilities | F52: Claire Potts | G52: Utilities | H52: Waste Management | J52: Generic | K52: Emily Brennan/SDNPA | L52: South Downs Society; steve.ankers@southdownssociety.org.uk; 01798 875081 | N52: 2013-08-01
A53: Catchment area basis | D53: Strategic Wastewater treatment infrastructure | E53: Such 'strategic' schemes should be 100% funded through the water company Asset Management Plan (AMP) process. Full detail on all 2015-2020 water company infrastructure will be made available when the water company Asset Management Plans are approved by Ofwat in December 2014. Therefore, the list of proposed water company infrastructure schemes listed in this IDP is not comprehensive (5/6/14). However, there may be a legitimate opportunity for additional CIL funding to increase the scope of such capital works to deliver SDNP benefits. (Chris Manning) | F53: Chris Manning | G53: Utilities | H53: Wastewater treatment | I53: 0 | J53: Generic | K53: Ofwat’s price review and Southern Water’s Business Plan. Investment requirements will need to be assessed on a whole catchment basis, rather than on an individual development site basis. | L53: Southern Water; Planning.policy@southernwater.co.uk; Clare Gibbons, Development Manager, Regional Planning, Asset Management; 01273 663143 | N53: Southern Water | P53: As required | Q53: OFWAT / AMP Process | R53: CM
A54: Catchment area basis | D54: Tertiary treatment of waste at STWorks in SDs river catchment | E54: In theory such schemes should be 100% funded through the water company Asset Management Plan (AMP) process if there are environmental drivers for it. Currently, under the Urban Waste Water Treatment Directive there are no such drivers across the SDNP; there are no designated 'sensitive areas'. Full detail on all 2015-2020 water company infrastructure will be made available when the water company Asset Management Plans are approved by Ofwat in December 2014. Therefore, the list of proposed water company infrastructure schemes listed in this IDP is not comprehensive (5/6/14). (Chris Manning) | F54: Chris Manning | G54: Utilities | H54: Wastewater treatment | I54: 0 | J54: Generic | K54: Water framework directive | L54: SDNPA:Western Area manager (Nick Heasman) | N54: Southern Water | R54: CM
A55: Chalk Downland | D55: Big Chalk: Strategic Project includes Chalk grassland restoration (eg Steyning Downland Scheme); Water Vole Reintroduction Project (in habitat restoration and reconnection) | F55: Emily Brennan | G55: Green | H55: Biodiversity project | J55: See Emily Brennan | K55: SDNPA: Biodiversity Lead (Emily Brennan)
A56: Chalk Downland | D56: Chalk Streams Project | F56: Emily Brennan | G56: Green | H56: Biodiversity project | J56: See Emily Brennan | K56: SDNPA: Biodiversity Lead (Emily Brennan) | L56: 2013-09-01
A57: Chalk Downland | D57: Hampshire Chalk Rivers | G57: Green | H57: Biodiversity project | J57: See Emily Brennan | K57: SDNPA: Biodiversity Lead (Emily Brennan)
A58: Chalk Downland | D58: Wild Adur | G58: Green | H58: Biodiversity project | J58: See Emily Brennan | K58: SDNPA: Biodiversity Lead (Emily Brennan)
A59: Park-wide | D59: Local sewerage infrastructure to connect new development to the system at the nearest point of adequate capacity. | E59: This scheme should be 100% funded through the water company Asset Management Plan (AMP) process. However, consideration needs to be given as to what circumstances developers are expected to fund 'local' as opposd to 'strategic' infrastructure. Full detail on all 2015-2020 water company infrastructure will be made available when the water company Asset Management Plans are approved by Ofwat in December 2014. Therefore, the list of proposed water company infrastructure schemes listed in this IDP is not comprehensive (5/6/14). If development comes earlier than anticipated within the Local Plan, there needs to be planning policies in place to address this – e.g. putting the onus on developers, again ensuring that infrastructure is provided ahead of development. However, there may be a legitimate opportunity for additional CIL funding to increase the scope of such capital works (funded through water comapnies or developer) to deliver SDNP benefits. (Chris Manning) | F59: Chris Manning | G59: Utilities | H59: Wastewater Treatment | I59: 0 | J59: Generic | K59: Precise requirements will need to be investigated when the development comes forward. Developer to contact provider - Southern Water – to undertake capacity assessment | L59: Southern Water; Planning.policy@southernwater.co.uk; Clare Gibbons, Development Manager, Regional Planning, Asset Management; 01273 663143 | N59: 2013-07-01 | O59: Developer/Southern Water | P59: As per development | Q59: 0
A60: Park-wide | D60: Healthlands Reunited | G60: Green | H60: Biodiversity project | K60: Emily Brennan/SDNPA
A61: Park-wide | D61: Heritage Coast | G61: Green | H61: Landscape
D62: Defence of the Downs | G62: ?? | H62: ??
A63: Park-wide | D63: Historic Landscapes | G63: Social & Leisure | H63: Cultural heritage | K63: Anne Bone/SDNPA
A65: NOTES
A66: West Sussex County Council | C66: WSCC ready to suggest a Strategic Infrastructure package based on our development strategy once they are made aware of the strategy and will take into account other funding sources. They are also fine with broad allocations. | D66: Position Statement | G66: All | H66: All | K66: WSCC | L66: 2014-10-01
A67: Southern Water | D67: Stated approach to funding their work programme
A68: South East Water | D68: Fully funded Network Infrastructure Improvements to 2025 | E68: 92km of mains waterpipe at £75m | F68: £0 burden in our IDP.
A69: English Heritage | D69: Guidance on funding heritage assets
A70: Highways Agency | C70: Meeting Request | D70: Notes of meeting
A71: Natural England | D71: Suggests potential project sources
A72: Sussex Wildlife Trust | C72: Meeting Request | D72: Notes of meeting | E72: Met Nov14 more info to follow
A73: National Grid | D73: General response
A74: Hampshire Wildlife Trust | C74: Provided detailed projects incorporated into IDP list
A75: ESCC Education | D75: http://www.eastsussex.gov.uk/educationandlearning/management/download.htm Education colleagues will use this document to update IDPs and will hope to send these later this month/early next.
A77: EXCLUDED
A78: Winchester | B78: WCC | C78: Winchester CC area of Park | D78: Extra care housing provision - 183 units to meet needs in the SDNP area | F78: Chris Patterson | G78: Facilities Services | H78: Community service | I78: 29000000 | J78: Hampshire County Council Strategic Infrastructure Statement / HCC Adult Services Dept | K78: Hampshire County Council | L78: 2013-02-01 | N78: HCC, NHS and private sector providers | O78: 2025 | P78: none | Q78: 29000000

Sheet Data
B4: Categories: | C4: Sub-Categories: | D4: Living Landscapes | E4: People Places | F4: Sus Futures | G4: Sub Totals | H4: Cat Totals
B5: Green Infrastructure | C5: Biodiversity project | D5: x | G5: =SUMIF('Full IDP'!$K$1:$K$987,"Biodiversity project",'Full IDP'!$L$1:$L$987) -> 6189252
C6: Open space | D6: x | G6: =SUMIF('Full IDP'!$K$1:$K$987,"Open space",'Full IDP'!$L$1:$L$987) -> 300000
C7: Community Use G.I. | D7: x | G7: =SUMIF('Full IDP'!$K$1:$K$987,"Community Use G.I.",'Full IDP'!$L$1:$L$987) -> 90000
C8: Renewable Energy Gen. | D8: x | G8: =SUMIF('Full IDP'!$K$1:$K$987,"Renewable Energy Generation",'Full IDP'!$L$1:$L$987) -> 0
C9: Flood management | D9: x | G9: =SUMIF('Full IDP'!$K$1:$K$987,"Flood management",'Full IDP'!$L$1:$L$987) -> 35000
C10: Access land | D10: x | G10: =SUMIF('Full IDP'!$K$1:$K$987,"Access land",'Full IDP'!$L$1:$L$987) -> 2900000 | H10: =SUM(G5:G10) -> 9514252
B11: Social & Leisure | C11: Cultural heritage | D11: x | G11: =SUMIF('Full IDP'!$K$1:$K$987,"Cultural heritage",'Full IDP'!$L$1:$L$987) -> 2285000
C12: Public realm improvement | E12: x | G12: =SUMIF('Full IDP'!$K$1:$K$987,"Public realm improvement",'Full IDP'!$L$1:$L$987) -> 4000000
C13: Sports centres, equipment | F13: x | G13: =SUMIF('Full IDP'!$K$1:$K$987,"Sports centres, equipment",'Full IDP'!$L$1:$L$987) -> 8580000
C14: Play space | E14: x | G14: =SUMIF('Full IDP'!$K$1:$K$987,"Play space",'Full IDP'!$L$1:$L$987) -> 355000 | H14: =SUM(G11:G14) -> 15220000
B15: Services & Facilities | C15: Community building | E15: x | G15: =SUMIF('Full IDP'!$K$1:$K$987,"Community building",'Full IDP'!$L$1:$L$987) -> 6600000
C16: Community service | E16: x | G16: =SUMIF('Full IDP'!$K$1:$K$987,"Community service",'Full IDP'!$L$1:$L$987) -> 650000
C17: Community use | E17: x | G17: =SUMIF('Full IDP'!$K$1:$K$987,"Community use",'Full IDP'!$L$1:$L$987) -> 530000
C18: Village Hall | E18: x | G18: =SUMIF('Full IDP'!$K$1:$K$987,"Village Hall",'Full IDP'!$L$1:$L$987) -> 1722000
C19: Energy Efficiency Improv. | F19: x | G19: =SUMIF('Full IDP'!$K$1:$K$987,"Energy Efficiency Improvements",'Full IDP'!$L$1:$L$987) -> 125000 | H19: =SUM(G15:G19) -> 9627000
B20: Transport | C20: Rights of Way | D20: x | G20: =SUMIF('Full IDP'!$K$1:$K$987,"Rights of Way",'Full IDP'!$L$1:$L$987) -> 5395000
C21: Cycling | E21: x | G21: =SUMIF('Full IDP'!$K$1:$K$987,"Cycling",'Full IDP'!$L$1:$L$987) -> 19437000
C22: Public Transport | E22: x | G22: =SUMIF('Full IDP'!$K$1:$K$987,"Public Transport",'Full IDP'!$L$1:$L$987) -> 739350
C23: Car park | E23: x | G23: =SUMIF('Full IDP'!$K$1:$K$987,"Car park",'Full IDP'!$L$1:$L$987) -> 3490000
C24: Highway works | E24: x | G24: =SUMIF('Full IDP'!$K$1:$K$987,"Highway works",'Full IDP'!$L$1:$L$987) -> 1202000 | H24: =SUM(G20:G24) -> 30263350
B25: Education | C25: Primary Education | E25: x | G25: =SUMIF('Full IDP'!$K$1:$K$987,"Primary Education",'Full IDP'!$L$1:$L$987) -> 12620000
C26: Secondary Education | E26: x | G26: =SUMIF('Full IDP'!$K$1:$K$987,"Secondary Education",'Full IDP'!$L$1:$L$987) -> 777000
C27: Interpretation | E27: x | G27: =SUMIF('Full IDP'!$K$1:$K$987,"Interpretation",'Full IDP'!$L$1:$L$987) -> 100000
C28: Visitor information | E28: x | G28: =SUMIF('Full IDP'!$K$1:$K$987,"Visitor information",'Full IDP'!$L$1:$L$987) -> 1950000 | H28: =SUM(G25:G28) -> 15447000
B29: Health & Wellbeing | C29: General Health | E29: x | G29: =SUMIF('Full IDP'!$K$1:$K$987,"General Health",'Full IDP'!$L$1:$L$987) -> 1200000 | H29: =G29 -> 1200000
B30: Utility Services | C30: Utility supply | F30: x | G30: =SUMIF('Full IDP'!$K$1:$K$987,"Utility supply",'Full IDP'!$L$1:$L$987) -> 1000000
C31: Telecommunications | F31: x | G31: =SUMIF('Full IDP'!$K$1:$K$987,"Telecommunications",'Full IDP'!$L$1:$L$987) -> 0
C32: Wastewater treatment | F32: x | G32: =SUMIF('Full IDP'!$K$1:$K$987,"Wastewater treatment",'Full IDP'!$L$1:$L$987) -> 0
C33: Waste Management | F33: x | G33: =SUMIF('Full IDP'!$K$1:$K$987,"Waste Management",'Full IDP'!$L$1:$L$987) -> 0 | H33: =SUM(G30:G33) -> 1000000
C34: Sub Totals: | D34: =SUMIF(D5:D33, "x", $G$5:$G$33) -> 17194252 | E34: =SUMIF(E5:E33, "x", $G$5:$G$33) -> 55372350 | F34: =SUMIF(F5:F33, "x", $G$5:$G$33) -> 9705000 | G34: =SUM(G5:G33) -> 82271602
B40: Local Plan Housing Requirement[1] | D40: CIL Charging Area[2] | E40: CIL Charge | F40: All units | G40: OMH units (minus 40% AH) | H40: Unit size (sqm) | I40: CIL income (for 90m2 average new house)
B41: Allocated housing land (excluding strategic sites) | C41: 1963 | D41: Zone 1 | E41: 150 | F41: =1420+150 -> 1570 | G41: =F41*0.6 -> 942 | H41: 90 | I41: =E41*G41*$H$41 -> 12717000
D42: Zone 2 | E42: 200 | F42: 393 | G42: 236 | I42: 4248000
B43: Strategic Sites | C43: 615 | D43: Shoreham Cement Works | E43: 200 | F43: 0 | G43: =F43*0.6 -> 0 | I43: 0
D44: Former Syngenta site, Fernhurst (Zone 3) | E44: 200 | F44: 200 | G44: =F44*0.5 -> 100 | I44: 1800000
D45: North Street Quarter, Lewes (Zone 1) | E45: 150 | F45: 415 | G45: 249 | I45: 3361500
B46: Windfalls | C46: 765 | D46: Unknown | E46: 150 | F46: 765 | G46: 459 | I46: 6196500
B47: Totals | C47: 3343 | D47: - | E47: - | F47: =SUM(F41:F46) -> 3343 | G47: 2005.8 | I47: =SUM(I41:I46) -> 28323000
B50: [1] Local Plan: Preferred Options (Policy SD23 & Table 7.1)
B51: [2] CIL Charging Area and CIL charge per square metre is provided in the Draft CIL Charging Schedule
